OrganisationNameLabel,OrganisationURI,EffectiveDate,Directorate/ServiceWhereExpenditureIncurred,ServiceCategoryLabel,ServiceCategoryURI,Supplier,SupplierRegisteredCompany Number,PaymentDate,TransactionNumber,NetAmount,IrrecoverableVAT,PurposeOfSpend,ProcurementClassification:ProclassLabel,ProcrementClassification:ProClassCode
South Lakeland District Council,http://opendatacommunities.org/id/district-council/south-lakeland,31/01/2015,Social Enterprise Admin,Cultural Environmental Regulatory & Planning Services,http://opendatacommunities.org/def/concept/finance/sercop/objective/104,CONTINENTAL LANDSCAPES LTD,2108452,42030,43574,2606.79,0,Extra Works for Cemeteries April 14-,Horticultural,240000
South Lakeland District Council,http://opendatacommunities.org/id/district-council/south-lakeland,31/01/2015,Social Enterprise Admin,Cultural Environmental Regulatory & Planning Services,http://opendatacommunities.org/def/concept/finance/sercop/objective/104,CONTINENTAL LANDSCAPES LTD,2108452,42030,43574,348.69,0,Extra Works for Cemeteries April 14-,Horticultural,240000
South Lakeland District Council,http://opendatacommunities.org/id/district-council/south-lakeland,31/01/2015,Business Support Community Services,Internal Trading Accounts,,BPI RECYCLED PRODUCTS,350729,42018,45391,5191.1,0,Black liners - 455x785x990 50/F 400/PK,Cleaning & Janitorial,130000
South Lakeland District Council,http://opendatacommunities.org/id/district-council/south-lakeland,31/01/2015,Social Enterprise Admin,Cultural Environmental Regulatory & Planning Services,http://opendatacommunities.org/def/concept/finance/sercop/objective/104,B & J METALS (SKIP HIRE) LTD,4634318,42025,45614,630,0,Grounds waste disposal- Sandylands Road,Environmental Services,180000
South Lakeland District Council,http://opendatacommunities.org/id/district-council/south-lakeland,31/01/2015,Social Enterprise Admin,Cultural Environmental Regulatory & Planning Services,http://opendatacommunities.org/def/concept/finance/sercop/objective/104,B & J METALS (SKIP HIRE) LTD,4634318,42025,45614,2520,0,Grounds waste disposal- Sandylands Road,Environmental Services,180000
South Lakeland District Council,http://opendatacommunities.org/id/district-council/south-lakeland,31/01/2015,Business Support Community Services,Cultural Environmental Regulatory & Planning Services,http://opendatacommunities.org/def/concept/finance/sercop/objective/104,WESTMORLAND VETERINARY GROUP,,42011,45881,271.14,0,Vet Inspection Fees,Healthcare,310000
South Lakeland District Council,http://opendatacommunities.org/id/district-council/south-lakeland,31/01/2015,Business Support Community Services,Cultural Environmental Regulatory & Planning Services,http://opendatacommunities.org/def/concept/finance/sercop/objective/104,WESTMORLAND VETERINARY GROUP,,42011,45940,314.7,0,Vet Inspection Fees,Healthcare,310000
South Lakeland District Council,http://opendatacommunities.org/id/district-council/south-lakeland,31/01/2015,Business Support Community Services,Cultural Environmental Regulatory & Planning Services,http://opendatacommunities.org/def/concept/finance/sercop/objective/104,GEOFF MONK & ASSOCIATES,,42009,45957,1200,0,Rainfall Forecast,Financial Services,200000
South Lakeland District Council,http://opendatacommunities.org/id/district-council/south-lakeland,31/01/2015,Social Enterprise Admin,Central Services,http://opendatacommunities.org/def/concept/finance/sercop/objective/102,ADECCO UK LIMITED,593232,42016,46073,515.88,0,To supply for period,Consultancy,150000
South Lakeland District Council,http://opendatacommunities.org/id/district-council/south-lakeland,31/01/2015,Democratic Services,Central Services,http://opendatacommunities.org/def/concept/finance/sercop/objective/102,IMPROVEMENT & DEVELOPMENT AGENCY,3675577,42016,46078,1000,0,Cllr to attend the Leadership,Education,170000
South Lakeland District Council,http://opendatacommunities.org/id/district-council/south-lakeland,31/01/2015,Development Strategy,Cultural Environmental Regulatory & Planning Services,http://opendatacommunities.org/def/concept/finance/sercop/objective/104,Matchtech,2526418,42009,46080,389.06,0,"12-week contract, 30hrs",Consultancy,150000
South Lakeland District Council,http://opendatacommunities.org/id/district-council/south-lakeland,31/01/2015,Social Enterprise Admin,Cultural Environmental Regulatory & Planning Services,http://opendatacommunities.org/def/concept/finance/sercop/objective/104,Matchtech,2526418,42016,46081,1068.19,0,TO SUPPLY DEVELOPMENT CONTROL TEAM,Consultancy,150000
South Lakeland District Council,http://opendatacommunities.org/id/district-council/south-lakeland,31/01/2015,Social Enterprise Admin,Highways & Transport Services,http://opendatacommunities.org/def/concept/finance/sercop/objective/107,B & G Cleaning Services Ltd,,42016,46083,3349,0,Quotation 091214MR/2,Cleaning & Janitorial,130000
South Lakeland District Council,http://opendatacommunities.org/id/district-council/south-lakeland,31/01/2015,Business Support Community Services,Cultural Environmental Regulatory & Planning Services,http://opendatacommunities.org/def/concept/finance/sercop/objective/104,UNITED UTILITIES WATER PLC,2366678,42016,46086,721,0,Private Water Analysis,Environmental Services,180000
South Lakeland District Council,http://opendatacommunities.org/id/district-council/south-lakeland,31/01/2015,Development Management,Cultural Environmental Regulatory & Planning Services,http://opendatacommunities.org/def/concept/finance/sercop/objective/104,NPS GROUP LTD,6614601,42011,46097,287.5,0,"IE/2013/0194 - Land off Oxenholme Road,",Street & Traffic Management,350000
South Lakeland District Council,http://opendatacommunities.org/id/district-council/south-lakeland,31/01/2015,Social Enterprise Admin,Cultural Environmental Regulatory & Planning Services,http://opendatacommunities.org/def/concept/finance/sercop/objective/104,Thomson Hayton Winkley,,42011,46101,300,0,professional Fees covering the period,Horticultural,240000
South Lakeland District Council,http://opendatacommunities.org/id/district-council/south-lakeland,31/01/2015,Development Strategy,Housing Services,http://opendatacommunities.org/def/concept/finance/sercop/objective/108,MORGAN HUNT UK LIMITED,4349535,42011,46119,773.3,0,Housing Advice Manager,Consultancy,150000
South Lakeland District Council,http://opendatacommunities.org/id/district-council/south-lakeland,31/01/2015,Development Strategy,Housing Services,http://opendatacommunities.org/def/concept/finance/sercop/objective/108,MORGAN HUNT UK LIMITED,4349535,42011,46119,773.3,0,Housing Advice Manager,Consultancy,150000
South Lakeland District Council,http://opendatacommunities.org/id/district-council/south-lakeland,31/01/2015,Lake Wardens,Culture and Related Serv,http://opendatacommunities.org/def/concept/finance/sercop/objective/104,JETTIES & MOORINGS,,42011,46143,2405.75,0,Movement and Re-siting of permanent and,Financial Services,200000
South Lakeland District Council,http://opendatacommunities.org/id/district-council/south-lakeland,31/01/2015,Business Support Community Services,Cultural Environmental Regulatory & Planning Services,http://opendatacommunities.org/def/concept/finance/sercop/objective/104,FURNESS NEWSPAPERS LTD,1155841,42025,46146,1269.73,0,Half page advert in the Evening Mail on,Facilities & Management Services,190000
South Lakeland District Council,http://opendatacommunities.org/id/district-council/south-lakeland,31/01/2015,Development Strategy,Housing Services,http://opendatacommunities.org/def/concept/finance/sercop/objective/108,MORGAN HUNT UK LIMITED,4349535,42011,46165,472.12,0,"CA, Housing Advice Manager",Consultancy,150000
South Lakeland District Council,http://opendatacommunities.org/id/district-council/south-lakeland,31/01/2015,Development Strategy,Housing Services,http://opendatacommunities.org/def/concept/finance/sercop/objective/108,MORGAN HUNT UK LIMITED,4349535,42011,46165,472.12,0,"CA, Housing Advice Manager",Consultancy,150000
South Lakeland District Council,http://opendatacommunities.org/id/district-council/south-lakeland,31/01/2015,Development Implementation,SLDC as Agent,,ENGLISH LAKES HOTELS,1420143,42018,46166,650,0,JTB Inbound Mission September 2014,Financial Services,200000
South Lakeland District Council,http://opendatacommunities.org/id/district-council/south-lakeland,31/01/2015,Social Enterprise Admin,Cultural Environmental Regulatory & Planning Services,http://opendatacommunities.org/def/concept/finance/sercop/objective/104,Matchtech,2526418,42016,46167,1068.19,0,TO SUPPLY DEVELOPMENT CONTROL TEAM,Consultancy,150000
South Lakeland District Council,http://opendatacommunities.org/id/district-council/south-lakeland,31/01/2015,Social Enterprise Admin,Cultural Environmental Regulatory & Planning Services,http://opendatacommunities.org/def/concept/finance/sercop/objective/104,Matchtech,2526418,42016,46168,635.14,0,TO SUPPLY DEVELOPMENT CONTROL TEAM,Consultancy,150000
South Lakeland District Council,http://opendatacommunities.org/id/district-council/south-lakeland,31/01/2015,Legal Services,Central Services,http://opendatacommunities.org/def/concept/finance/sercop/objective/102,NEWSQUEST (NORTH WEST) LTD,3102566,42011,46195,725,0,Advert to appear 18/12/14 re:  Local,Facilities & Management Services,190000
South Lakeland District Council,http://opendatacommunities.org/id/district-council/south-lakeland,31/01/2015,Business Support Community Services,Internal Trading Accounts,,HAKO MACHINES LIMITED,1414225,42011,46201,4626.7,0,Hire of KX60 AOS - 2013/14,Vehicle Management,380000
South Lakeland District Council,http://opendatacommunities.org/id/district-council/south-lakeland,31/01/2015,Business Support Community Services,Internal Trading Accounts,,HAKO MACHINES LIMITED,1414225,42011,46202,5779.54,0,Hire of KX60 AOS - 2013/14,Vehicle Management,380000
South Lakeland District Council,http://opendatacommunities.org/id/district-council/south-lakeland,31/01/2015,Business Support Community Services,Internal Trading Accounts,,HAKO MACHINES LIMITED,1414225,42009,46203,11559.08,0,Hire of KX60 AOS - 2013/14,Vehicle Management,380000
South Lakeland District Council,http://opendatacommunities.org/id/district-council/south-lakeland,31/01/2015,Business Support Community Services,Internal Trading Accounts,,HAKO MACHINES LIMITED,1414225,42009,46204,5779.54,0,Hire of KX60 AOS - 2013/14,Vehicle Management,380000
South Lakeland District Council,http://opendatacommunities.org/id/district-council/south-lakeland,31/01/2015,Social Enterprise Admin,Central Services,http://opendatacommunities.org/def/concept/finance/sercop/objective/102,ADECCO UK LIMITED,593232,42016,46207,530.21,0,To supply for period,Consultancy,150000
South Lakeland District Council,http://opendatacommunities.org/id/district-council/south-lakeland,31/01/2015,Technical Team,Cultural Environmental Regulatory & Planning Services,http://opendatacommunities.org/def/concept/finance/sercop/objective/104,Matchtech,2526418,42016,46212,781.2,0,TO SUPPLY CONTRACT 16,Consultancy,150000
South Lakeland District Council,http://opendatacommunities.org/id/district-council/south-lakeland,31/01/2015,ICT Group,Central Services,http://opendatacommunities.org/def/concept/finance/sercop/objective/102,IT PROFESSIONAL SERVICES (ITPS),,42011,46213,3773.44,0,Citrix Xendesktop subscription renewal -,Information Communication Technology,270000
South Lakeland District Council,http://opendatacommunities.org/id/district-council/south-lakeland,31/01/2015,Environment and Housing,Housing,http://opendatacommunities.org/def/concept/finance/sercop/objective/108,ULTRACARE PROPERTY MANAGEMENT LTD,5020554,42009,46216,2714.13,0,"Coniston, LA21 8EQ",Financial Services,200000
South Lakeland District Council,http://opendatacommunities.org/id/district-council/south-lakeland,31/01/2015,Business Support Community Services,Internal Trading Accounts,,POST OFFICE LTD,2154540,42012,46218,660,0,"Licence SL003, SL004, SL096 & SL216",Vehicle Management,380000
South Lakeland District Council,http://opendatacommunities.org/id/district-council/south-lakeland,31/01/2015,Business Support Community Services,Cultural Environmental Regulatory & Planning Services,http://opendatacommunities.org/def/concept/finance/sercop/objective/104,NEWSQUEST (NORTH WEST) LTD,3102566,42025,46224,630,0,Half page advert in the Westmorland,Facilities & Management Services,190000
South Lakeland District Council,http://opendatacommunities.org/id/district-council/south-lakeland,31/01/2015,ICT Group,Central Services,http://opendatacommunities.org/def/concept/finance/sercop/objective/102,NORTHGATE INFORMATION SOLUTIONS UK LTD,968498,42016,46227,1300,0,Info@Work embedded viewer,Information Communication Technology,270000
South Lakeland District Council,http://opendatacommunities.org/id/district-council/south-lakeland,31/01/2015,Car Parks,Highways & Transport Services,http://opendatacommunities.org/def/concept/finance/sercop/objective/107,NPOWER LTD (NCR),,42005,46229,2507.28,,No description recorded,Utilities,370000
South Lakeland District Council,http://opendatacommunities.org/id/district-council/south-lakeland,31/01/2015,SLDC Depots,Transport Planning Policy,http://opendatacommunities.org/def/concept/finance/sercop/objective/107,NPOWER LTD (NCR),,42005,46229,1674.59,,No description recorded,Utilities,370000
South Lakeland District Council,http://opendatacommunities.org/id/district-council/south-lakeland,31/01/2015,Markets,External Trading Accounts,,NPOWER LTD (NCR),,42005,46229,585.05,,No description recorded,Utilities,370000
South Lakeland District Council,http://opendatacommunities.org/id/district-council/south-lakeland,31/01/2015,Markets,External Trading Accounts,,NPOWER LTD (NCR),,42005,46229,808.62,,No description recorded,Utilities,370000
South Lakeland District Council,http://opendatacommunities.org/id/district-council/south-lakeland,31/01/2015,Public Halls,Cultural Environmental Regulatory & Planning Services,http://opendatacommunities.org/def/concept/finance/sercop/objective/104,NPOWER LTD (NCR),,42005,46229,978.86,,No description recorded,Utilities,370000
South Lakeland District Council,http://opendatacommunities.org/id/district-council/south-lakeland,31/01/2015,Environment and Housing,Housing Services,http://opendatacommunities.org/def/concept/finance/sercop/objective/108,GROWING CONCERNS LANDSCAPING,,42011,46231,1185.76,0,Payment for Handy Person Scheme,"Works - Construction, Repair & Maintenance",390000
South Lakeland District Council,http://opendatacommunities.org/id/district-council/south-lakeland,31/01/2015,Environment and Housing,SLDC as Agent,,HOME GROUP LTD,IP22981R,42011,46232,2499.52,0,CBL Co-ordinator Cost from 1/6/14 -,Financial Services,200000
South Lakeland District Council,http://opendatacommunities.org/id/district-council/south-lakeland,31/01/2015,Environment and Housing,SLDC as Agent,,HOME GROUP LTD,IP22981R,42011,46233,2475.67,0,CBL Co-ordinator Cost from 1/6/14 -,Financial Services,200000
South Lakeland District Council,http://opendatacommunities.org/id/district-council/south-lakeland,31/01/2015,Legal Services,Internal Trading Accounts,,PENNINGTONS (KENDAL) LIMITED,434649,42025,46234,2500,0,Annual Charge from 01 April 2014 to 31,Environmental Services,180000
South Lakeland District Council,http://opendatacommunities.org/id/district-council/south-lakeland,31/01/2015,Legal Services,Central Services,http://opendatacommunities.org/def/concept/finance/sercop/objective/102,VENN GROUP RECRUITMENT SOLUTIONS,,42011,46235,471.67,0,Wages for LF from w/k ending,Consultancy,150000
South Lakeland District Council,http://opendatacommunities.org/id/district-council/south-lakeland,31/01/2015,Business Support Community Services,Internal Trading Accounts,,ARCO LIMITED,133804,42018,46236,303.86,0,Polish,Clothing,140000
South Lakeland District Council,http://opendatacommunities.org/id/district-council/south-lakeland,31/01/2015,Holding Accounts,SLDC as Agent,,ROTARY CLUB OF ULVERSTON,,42012,46244,3412.5,,No description recorded,Financial Services,200000
South Lakeland District Council,http://opendatacommunities.org/id/district-council/south-lakeland,31/01/2015,Holding Accounts,SLDC as Agent,,ONE OFF TICKET SALES (CORO HALL),,42012,46246,3403,,No description recorded,Financial Services,200000
South Lakeland District Council,http://opendatacommunities.org/id/district-council/south-lakeland,31/01/2015,Environment and Housing,Housing Services,http://opendatacommunities.org/def/concept/finance/sercop/objective/108,GROWING CONCERNS LANDSCAPING,,42011,46247,325.98,0,Payment for draught busters scheme,Environmental Services,180000
South Lakeland District Council,http://opendatacommunities.org/id/district-council/south-lakeland,31/01/2015,Business Support Community Services,Cultural Environmental Regulatory & Planning Services,http://opendatacommunities.org/def/concept/finance/sercop/objective/104,MILNTHORPE KENNELS & CATTERY,8932302,42025,46248,2382.33,0,Stray dog kennelling fees April 20014 -,Environmental Services,180000
South Lakeland District Council,http://opendatacommunities.org/id/district-council/south-lakeland,31/01/2015,Business Support Community Services,Central Services,http://opendatacommunities.org/def/concept/finance/sercop/objective/102,Weir & Carmichael Ltd,551299,42011,46251,28934,0,Kerbside Recycling Bags,Vehicle Management,380000
South Lakeland District Council,http://opendatacommunities.org/id/district-council/south-lakeland,31/01/2015,Business Support Community Services,Cultural Environmental Regulatory & Planning Services,http://opendatacommunities.org/def/concept/finance/sercop/objective/104,OCS GROUP LTD T/A CANNON HYGIENE LTD,1298292,42023,46252,395.19,0,Clinical waste collections - December,Environmental Services,180000
South Lakeland District Council,http://opendatacommunities.org/id/district-council/south-lakeland,31/01/2015,Business Support Community Services,Internal Trading Accounts,,ALLSTAR BUSINESS SOLUTIONS LTD (NCR),2631112,42005,46253,4063.58,0,Fuel to 15/12,Utilities,370000
South Lakeland District Council,http://opendatacommunities.org/id/district-council/south-lakeland,31/01/2015,Business Support Community Services,Internal Trading Accounts,,ALLSTAR BUSINESS SOLUTIONS LTD (NCR),2631112,42005,46253,12213,0,Fuel to 15/12,Utilities,370000
South Lakeland District Council,http://opendatacommunities.org/id/district-council/south-lakeland,31/01/2015,Business Support Community Services,Cultural Environmental Regulatory & Planning Services,http://opendatacommunities.org/def/concept/finance/sercop/objective/104,OCS GROUP LTD T/A CANNON HYGIENE LTD,1298292,42023,46254,1712.13,0,Clinical waste collections - December,Environmental Services,180000
South Lakeland District Council,http://opendatacommunities.org/id/district-council/south-lakeland,31/01/2015,Business Support Community Services,Housing Services,http://opendatacommunities.org/def/concept/finance/sercop/objective/108,Landlord,,42011,46259,400,0,Monthly rent,Social Community Care Supplies & Services,410000
South Lakeland District Council,http://opendatacommunities.org/id/district-council/south-lakeland,31/01/2015,Business Support Community Services,Housing Services,http://opendatacommunities.org/def/concept/finance/sercop/objective/108,Landlord,,42011,46260,400,0,Monthly rent,Social Community Care Supplies & Services,410000
South Lakeland District Council,http://opendatacommunities.org/id/district-council/south-lakeland,31/01/2015,Business Support Community Services,Housing Services,http://opendatacommunities.org/def/concept/finance/sercop/objective/108,Landlord,,42011,46261,500,0,Monthly rent,Social Community Care Supplies & Services,410000
South Lakeland District Council,http://opendatacommunities.org/id/district-council/south-lakeland,31/01/2015,Car Park Enforcement,Highways & Transport Services,http://opendatacommunities.org/def/concept/finance/sercop/objective/107,TRAFFIC ENFORCEMENT CENTRE,,42011,46262,1000,,No description recorded,Financial Services,200000
South Lakeland District Council,http://opendatacommunities.org/id/district-council/south-lakeland,31/01/2015,Development Strategy,Cultural Environmental Regulatory & Planning Services,http://opendatacommunities.org/def/concept/finance/sercop/objective/104,Woolley Project Management Ltd,5301656,42016,46263,329.69,0,expenses for SLDC's,Consultancy,150000
South Lakeland District Council,http://opendatacommunities.org/id/district-council/south-lakeland,31/01/2015,Human Resources,Non-Service Payments,,BUSY BEES BENEFITS LTD,6758298,42011,46264,696,0,CHILD CARE VOUCHERS - APPROX 500.00 PER,Financial Services,200000
South Lakeland District Council,http://opendatacommunities.org/id/district-council/south-lakeland,31/01/2015,Human Resources,Non-Service Payments,,COMPUTERSHARE VOUCHER SERVICES LTD,4968447,42011,46266,637,0,CHULD CARE VOUCHERS - APPROX. 1000.00,Financial Services,200000
South Lakeland District Council,http://opendatacommunities.org/id/district-council/south-lakeland,31/01/2015,Social Enterprise Admin,Cultural Environmental Regulatory & Planning Services,http://opendatacommunities.org/def/concept/finance/sercop/objective/104,B & J METALS (SKIP HIRE) LTD,4634318,42023,46268,2100,0,Grounds waste disposal- Sandylands Road,Environmental Services,180000
South Lakeland District Council,http://opendatacommunities.org/id/district-council/south-lakeland,31/01/2015,Development Implementation,Cultural Environmental Regulatory & Planning Services,http://opendatacommunities.org/def/concept/finance/sercop/objective/104,People Junction,,42011,46269,3300,0,Kendal Christmas Festival Support,Environmental Services,180000
South Lakeland District Council,http://opendatacommunities.org/id/district-council/south-lakeland,31/01/2015,Business Support Community Services,Housing Services,http://opendatacommunities.org/def/concept/finance/sercop/objective/108,George Inchmore,,42011,46271,569.39,0,Final rent balance for 14 Beast Banks,Social Community Care Supplies & Services,410000
South Lakeland District Council,http://opendatacommunities.org/id/district-council/south-lakeland,31/01/2015,Development Implementation,Cultural Environmental Regulatory & Planning Services,http://opendatacommunities.org/def/concept/finance/sercop/objective/104,LAKELAND RADIO LTD,4031744,42011,46274,495,0,Stage 1 Promotional Package for Kendal,Environmental Services,180000
South Lakeland District Council,http://opendatacommunities.org/id/district-council/south-lakeland,31/01/2015,Development Implementation,Cultural Environmental Regulatory & Planning Services,http://opendatacommunities.org/def/concept/finance/sercop/objective/104,Safe and Sound Security Solutions UK Ltd,8230884,42025,46275,674.5,0,Provision of Security for Kendal,Environmental Services,180000
South Lakeland District Council,http://opendatacommunities.org/id/district-council/south-lakeland,31/01/2015,Development Implementation,Cultural Environmental Regulatory & Planning Services,http://opendatacommunities.org/def/concept/finance/sercop/objective/104,Paul Holdsworth,,42018,46277,2999,0,Market Place Pedestrian Audit,Environmental Services,180000
South Lakeland District Council,http://opendatacommunities.org/id/district-council/south-lakeland,31/01/2015,Human Resources,Central Services,http://opendatacommunities.org/def/concept/finance/sercop/objective/102,GUARDIAN NEWS & MEDIA LTD,908396,42011,46279,1400,0,Advertisement for Revenues and Benefits,Human Resources,260000
South Lakeland District Council,http://opendatacommunities.org/id/district-council/south-lakeland,31/01/2015,Social Enterprise Admin,Cultural Environmental Regulatory & Planning Services,http://opendatacommunities.org/def/concept/finance/sercop/objective/104,CUMBRIA CHAMBER OF COMMERCE,4211364,42025,46280,2500,0,Grant funding for TIC Kendal 2,Consultancy,150000
South Lakeland District Council,http://opendatacommunities.org/id/district-council/south-lakeland,31/01/2015,Development Strategy,Housing Services,http://opendatacommunities.org/def/concept/finance/sercop/objective/108,MORGAN HUNT UK LIMITED,4349535,42016,46281,610.5,0,Housing Advice Manager,Consultancy,150000
South Lakeland District Council,http://opendatacommunities.org/id/district-council/south-lakeland,31/01/2015,Development Strategy,Housing Services,http://opendatacommunities.org/def/concept/finance/sercop/objective/108,MORGAN HUNT UK LIMITED,4349535,42016,46281,610.5,0,Housing Advice Manager,Consultancy,150000
South Lakeland District Council,http://opendatacommunities.org/id/district-council/south-lakeland,31/01/2015,Financial Services,Central Services,http://opendatacommunities.org/def/concept/finance/sercop/objective/102,ALLPAY.NET LTD (NCR),6871069,42005,46283,638.29,0,Inv. No. 350440 30.11.14 SLBR,Financial Services,200000
South Lakeland District Council,http://opendatacommunities.org/id/district-council/south-lakeland,31/01/2015,Financial Services,Central Services,http://opendatacommunities.org/def/concept/finance/sercop/objective/102,ALLPAY.NET LTD (NCR),6871069,42005,46285,1059.54,0,Inv. No. 350440 30.11.14 SLBR,Financial Services,200000
South Lakeland District Council,http://opendatacommunities.org/id/district-council/south-lakeland,31/01/2015,Financial Services,Central Services,http://opendatacommunities.org/def/concept/finance/sercop/objective/102,ALLPAY.NET LTD (NCR),6871069,42005,46288,946.95,0,Inv 353601 31.12.14 SLSD,Financial Services,200000
South Lakeland District Council,http://opendatacommunities.org/id/district-council/south-lakeland,31/01/2015,Financial Services,Central Services,http://opendatacommunities.org/def/concept/finance/sercop/objective/102,ALLPAY.NET LTD (NCR),6871069,42005,46290,577.55,0,Inv 353601 31.12.14 SLSD,Financial Services,200000
South Lakeland District Council,http://opendatacommunities.org/id/district-council/south-lakeland,31/01/2015,Collection Fund,,,DEPT FOR COMMUNITIES & LOCAL GOVT (NCR),,42005,46294,2077490,,No description recorded,Financial Services,200000
South Lakeland District Council,http://opendatacommunities.org/id/district-council/south-lakeland,31/01/2015,Collection Fund,,,DEPT FOR COMMUNITIES & LOCAL GOVT (NCR),,42005,46294,1552,,No description recorded,Financial Services,200000
South Lakeland District Council,http://opendatacommunities.org/id/district-council/south-lakeland,31/01/2015,Collection Fund,,,DEPT FOR COMMUNITIES & LOCAL GOVT (NCR),,42005,46294,6207,,No description recorded,Financial Services,200000
South Lakeland District Council,http://opendatacommunities.org/id/district-council/south-lakeland,31/01/2015,Collection Fund,,,DEPT FOR COMMUNITIES & LOCAL GOVT (NCR),,42005,46296,1582850,,No description recorded,Financial Services,200000
South Lakeland District Council,http://opendatacommunities.org/id/district-council/south-lakeland,31/01/2015,Collection Fund,,,DEPT FOR COMMUNITIES & LOCAL GOVT (NCR),,42005,46296,1182,,No description recorded,Financial Services,200000
South Lakeland District Council,http://opendatacommunities.org/id/district-council/south-lakeland,31/01/2015,Collection Fund,,,DEPT FOR COMMUNITIES & LOCAL GOVT (NCR),,42005,46296,4730,,No description recorded,Financial Services,200000
South Lakeland District Council,http://opendatacommunities.org/id/district-council/south-lakeland,31/01/2015,Policy & Partnerships,SLDC as Agent,,BUSINESS AGAINST CRIME SOUTH LAKELAND,,42025,46299,15000,0,Business Against Crime South Lakeland,Financial Services,200000
South Lakeland District Council,http://opendatacommunities.org/id/district-council/south-lakeland,31/01/2015,Social Enterprise Admin,Cultural Environmental Regulatory & Planning Services,http://opendatacommunities.org/def/concept/finance/sercop/objective/104,CONTINENTAL LANDSCAPES LTD,2108452,42025,46304,9511.8,0,Grounds maintenance 14-15,Horticultural,240000
South Lakeland District Council,http://opendatacommunities.org/id/district-council/south-lakeland,31/01/2015,Social Enterprise Admin,Cultural Environmental Regulatory & Planning Services,http://opendatacommunities.org/def/concept/finance/sercop/objective/104,CONTINENTAL LANDSCAPES LTD,2108452,42025,46304,1376.57,0,Grounds maintenance 14-15,Cemetery & Crematorium,120000
South Lakeland District Council,http://opendatacommunities.org/id/district-council/south-lakeland,31/01/2015,Social Enterprise Admin,Cultural Environmental Regulatory & Planning Services,http://opendatacommunities.org/def/concept/finance/sercop/objective/104,CONTINENTAL LANDSCAPES LTD,2108452,42025,46304,45478.33,0,Grounds maintenance 14-15,Horticultural,240000
South Lakeland District Council,http://opendatacommunities.org/id/district-council/south-lakeland,31/01/2015,Social Enterprise Admin,Cultural Environmental Regulatory & Planning Services,http://opendatacommunities.org/def/concept/finance/sercop/objective/104,CONTINENTAL LANDSCAPES LTD,2108452,42025,46304,2259.05,0,Grounds maintenance 14-15,Horticultural,240000
South Lakeland District Council,http://opendatacommunities.org/id/district-council/south-lakeland,31/01/2015,Environmental Protection,Cultural Environmental Regulatory & Planning Services,http://opendatacommunities.org/def/concept/finance/sercop/objective/104,CONTINENTAL LANDSCAPES LTD,2108452,42023,46305,3582.38,0,Covering 12monthly payments for,Cemetery & Crematorium,120000
South Lakeland District Council,http://opendatacommunities.org/id/district-council/south-lakeland,31/01/2015,Democratic Services,SLDC as Agent,,CASTLERIGG CONSULTING,6747285,42025,46306,23600,0,Support to the Transformation Challenge,Consultancy,150000
South Lakeland District Council,http://opendatacommunities.org/id/district-council/south-lakeland,31/01/2015,Business Support Community Services,Internal Trading Accounts,,HAKO MACHINES LIMITED,1414225,42025,46307,279.88,0,Ram,Vehicle Management,380000
South Lakeland District Council,http://opendatacommunities.org/id/district-council/south-lakeland,31/01/2015,Financial Services,Cultural Environmental Regulatory & Planning Services,http://opendatacommunities.org/def/concept/finance/sercop/objective/104,PRICEWATERHOUSECOOPERS,,42025,46310,18568,0,Trade waste VAT Claim fees,Consultancy,150000
South Lakeland District Council,http://opendatacommunities.org/id/district-council/south-lakeland,31/01/2015,Development Implementation,Cultural Environmental Regulatory & Planning Services,http://opendatacommunities.org/def/concept/finance/sercop/objective/104,Stage Effects,,42016,46311,780,0,Snow Machine Hire for Kendal Christmas,Environmental Services,180000
South Lakeland District Council,http://opendatacommunities.org/id/district-council/south-lakeland,31/01/2015,Business Support Community Services,Cultural Environmental Regulatory & Planning Services,http://opendatacommunities.org/def/concept/finance/sercop/objective/104,Floodsafe Projects Ltd,8418342,42016,46312,11855.25,0,Design and install aluminium floodgate,Arts & Leisure Services,290000
South Lakeland District Council,http://opendatacommunities.org/id/district-council/south-lakeland,31/01/2015,Community Services,Central Services,http://opendatacommunities.org/def/concept/finance/sercop/objective/102,VODAFONE LIMITED,1471587,42016,46313,299.57,,No description recorded,Utilities,370000
South Lakeland District Council,http://opendatacommunities.org/id/district-council/south-lakeland,31/01/2015,Environment and Housing,Housing,http://opendatacommunities.org/def/concept/finance/sercop/objective/108,ENVIRONMENT & HOUSING GRANTS,,42016,46315,6007.5,0,Landlord Affordable Housing Grant for,Financial Services,200000
South Lakeland District Council,http://opendatacommunities.org/id/district-council/south-lakeland,31/01/2015,Research and Intelligence,Central Services,http://opendatacommunities.org/def/concept/finance/sercop/objective/102,CDR GROUP LTD,5960494,42030,46317,250,0,MapGML Maintenance Contract Renewal,Information Communication Technology,270000
South Lakeland District Council,http://opendatacommunities.org/id/district-council/south-lakeland,31/01/2015,Policy & Partnerships,Cultural Environmental Regulatory & Planning Services,http://opendatacommunities.org/def/concept/finance/sercop/objective/104,Millerground c/o Windermere & Bowness,,42016,46319,5000,0,Millerground Local Important Project,Financial Services,200000
South Lakeland District Council,http://opendatacommunities.org/id/district-council/south-lakeland,31/01/2015,Policy & Partnerships,Cultural Environmental Regulatory & Planning Services,http://opendatacommunities.org/def/concept/finance/sercop/objective/104,GRANTS- MISCELLANEOUS,,42016,46320,250,0,New dry stone wall - already been,Financial Services,200000
South Lakeland District Council,http://opendatacommunities.org/id/district-council/south-lakeland,31/01/2015,Technical Team,Cultural Environmental Regulatory & Planning Services,http://opendatacommunities.org/def/concept/finance/sercop/objective/104,STANDING STONE DRAWING OFFICE SUPPLIES,5128817,42025,46327,9894,0,HP T3500 PRINTER/SCANNER,Furniture & Soft Furnishings,210000
South Lakeland District Council,http://opendatacommunities.org/id/district-council/south-lakeland,31/01/2015,Printing Section,Central Services,http://opendatacommunities.org/def/concept/finance/sercop/objective/102,STANDING STONE DRAWING OFFICE SUPPLIES,5128817,42025,46328,392.3,0,"Ink for Hp Printer Cyan,",Stationery,340000
South Lakeland District Council,http://opendatacommunities.org/id/district-council/south-lakeland,31/01/2015,Policy & Partnerships,SLDC as Agent,,Inspira Cumbria Ltd,,42016,46332,630.48,0,Below are the costings for the contents,Financial Services,200000
South Lakeland District Council,http://opendatacommunities.org/id/district-council/south-lakeland,31/01/2015,ICT Group,Central Services,http://opendatacommunities.org/def/concept/finance/sercop/objective/102,CABLE & WIRELESS UK (VODAFONE),,42016,46334,2911.7,0,"GSi Convergence Framework, MSP Dedicated",Information Communication Technology,270000
South Lakeland District Council,http://opendatacommunities.org/id/district-council/south-lakeland,31/01/2015,Debtors,Non-Service Payments,,SOUTH LAKES HOUSING RENT A/C,,42016,46335,3970.65,,No description recorded,Housing Management,250000
South Lakeland District Council,http://opendatacommunities.org/id/district-council/south-lakeland,31/01/2015,Electoral Services,Central Services,http://opendatacommunities.org/def/concept/finance/sercop/objective/102,SCI PRINT LTD,,42016,46336,1872.82,0,Weekly Mailings for IER Number 6,Mail Services,300000
South Lakeland District Council,http://opendatacommunities.org/id/district-council/south-lakeland,31/01/2015,Electoral Services,Central Services,http://opendatacommunities.org/def/concept/finance/sercop/objective/102,SCI PRINT LTD,,42023,46337,305.47,0,Weekly Mailings Number 7,Mail Services,300000
South Lakeland District Council,http://opendatacommunities.org/id/district-council/south-lakeland,31/01/2015,Debtors,Non-Service Payments,,SOUTH LAKES HOUSING RENT A/C,,42016,46338,4920.53,,No description recorded,Housing Management,250000
South Lakeland District Council,http://opendatacommunities.org/id/district-council/south-lakeland,31/01/2015,Social Enterprise Admin,Cultural Environmental Regulatory & Planning Services,http://opendatacommunities.org/def/concept/finance/sercop/objective/104,URBANVISION PARTNERSHIP LTD,,42016,46340,4042.2,0,BUSINESS DEVELOPMENT AND PROJECT,Consultancy,150000
South Lakeland District Council,http://opendatacommunities.org/id/district-council/south-lakeland,31/01/2015,Social Enterprise Admin,Cultural Environmental Regulatory & Planning Services,http://opendatacommunities.org/def/concept/finance/sercop/objective/104,URBANVISION PARTNERSHIP LTD,,42016,46341,4372.72,0,BUSINESS DEVELOPMENT AND PROJECT,Consultancy,150000
South Lakeland District Council,http://opendatacommunities.org/id/district-council/south-lakeland,31/01/2015,Social Enterprise Admin,Cultural Environmental Regulatory & Planning Services,http://opendatacommunities.org/def/concept/finance/sercop/objective/104,URBANVISION PARTNERSHIP LTD,,42016,46342,1527.3,0,BUSINESS DEVELOPMENT AND PROJECT,Consultancy,150000
South Lakeland District Council,http://opendatacommunities.org/id/district-council/south-lakeland,31/01/2015,Social Enterprise Admin,Cultural Environmental Regulatory & Planning Services,http://opendatacommunities.org/def/concept/finance/sercop/objective/104,URBANVISION PARTNERSHIP LTD,,42016,46343,4523.79,0,BUSINESS DEVELOPMENT AND PROJECT,Consultancy,150000
South Lakeland District Council,http://opendatacommunities.org/id/district-council/south-lakeland,31/01/2015,Revenues and Benefits,Central Services,http://opendatacommunities.org/def/concept/finance/sercop/objective/102,BADENOCH & CLARK,1356186,42016,46344,533.4,0,Revs and Bens,Consultancy,150000
South Lakeland District Council,http://opendatacommunities.org/id/district-council/south-lakeland,31/01/2015,Development Control,Cultural Environmental Regulatory & Planning Services,http://opendatacommunities.org/def/concept/finance/sercop/objective/104,Planning Refunds BACS,,42016,46345,385,,No description recorded,Environmental Services,180000
South Lakeland District Council,http://opendatacommunities.org/id/district-council/south-lakeland,31/01/2015,Business Support Community Services,Housing Services,http://opendatacommunities.org/def/concept/finance/sercop/objective/108,Landlord,,42016,46346,520,0,Monthly rent ,Social Community Care Supplies & Services,410000
South Lakeland District Council,http://opendatacommunities.org/id/district-council/south-lakeland,31/01/2015,Business Support Community Services,Housing Services,http://opendatacommunities.org/def/concept/finance/sercop/objective/108,Landlord,7121028,42016,46347,400,0,Monthly rent ,Social Community Care Supplies & Services,410000
South Lakeland District Council,http://opendatacommunities.org/id/district-council/south-lakeland,31/01/2015,Business Support Community Services,Housing Services,http://opendatacommunities.org/def/concept/finance/sercop/objective/108,Landlord,,42016,46348,520,0,Monthly rent ,Social Community Care Supplies & Services,410000
South Lakeland District Council,http://opendatacommunities.org/id/district-council/south-lakeland,31/01/2015,Business Support Community Services,Housing Services,http://opendatacommunities.org/def/concept/finance/sercop/objective/108,Landlord,,42016,46349,400,0,Monthly rent ,Social Community Care Supplies & Services,410000
South Lakeland District Council,http://opendatacommunities.org/id/district-council/south-lakeland,31/01/2015,Business Support Community Services,SLDC as Agent,,JOANNA SMAILES,,42016,46350,1800,0,"Project Management, Cumbria NSNO &",Financial Services,200000
South Lakeland District Council,http://opendatacommunities.org/id/district-council/south-lakeland,31/01/2015,Technical Team,Cultural Environmental Regulatory & Planning Services,http://opendatacommunities.org/def/concept/finance/sercop/objective/104,Matchtech,2526418,42023,46357,504,0,TO SUPPLY CONTRACT 16,Consultancy,150000
South Lakeland District Council,http://opendatacommunities.org/id/district-council/south-lakeland,31/01/2015,Technical Team,Cultural Environmental Regulatory & Planning Services,http://opendatacommunities.org/def/concept/finance/sercop/objective/104,Matchtech,2526418,42023,46358,378,0,TO SUPPLY CONTRACT 16,Consultancy,150000
South Lakeland District Council,http://opendatacommunities.org/id/district-council/south-lakeland,31/01/2015,Holding Accounts,SLDC as Agent,,Income & Rents Refunds/Credits BACS,,42016,46359,3403,,No description recorded,Financial Services,200000
South Lakeland District Council,http://opendatacommunities.org/id/district-council/south-lakeland,31/01/2015,Coronation Hall,External Trading Accounts,,SHORROCK TRICHEM,4179799,42018,46360,295.08,0,Toilet rolls - miomi jumbo 2 ply 12 pack,Cleaning & Janitorial,130000
South Lakeland District Council,http://opendatacommunities.org/id/district-council/south-lakeland,31/01/2015,Revenues and Benefits,Highways & Transport Services,http://opendatacommunities.org/def/concept/finance/sercop/objective/107,LOOMIS UK LTD,3200432,42018,46365,914.6,0,2014 - 2015,Consultancy,150000
South Lakeland District Council,http://opendatacommunities.org/id/district-council/south-lakeland,31/01/2015,Revenues and Benefits,SLDC as Agent,,ROYAL MAIL GROUP PLC,,42018,46367,1408.12,0,2014-15  Postal Charges a/c 0198123013,Financial Services,200000
South Lakeland District Council,http://opendatacommunities.org/id/district-council/south-lakeland,31/01/2015,Revenues and Benefits,SLDC as Agent,,ROYAL MAIL GROUP PLC,,42018,46368,1201.74,0,2014-15  Postal Charges a/c 0198123013,Financial Services,200000
South Lakeland District Council,http://opendatacommunities.org/id/district-council/south-lakeland,31/01/2015,Revenues and Benefits,Central Services,http://opendatacommunities.org/def/concept/finance/sercop/objective/102,MERITEC LTD,3224622,42023,46369,418.5,0,RAB Processing Contract and Agency,Consultancy,150000
South Lakeland District Council,http://opendatacommunities.org/id/district-council/south-lakeland,31/01/2015,Revenues and Benefits,Central Services,http://opendatacommunities.org/def/concept/finance/sercop/objective/102,MERITEC LTD,3224622,42018,46370,279,0,RAB Processing Contract and Agency,Consultancy,150000
South Lakeland District Council,http://opendatacommunities.org/id/district-council/south-lakeland,31/01/2015,Social Enterprise Admin,Highways & Transport Services,http://opendatacommunities.org/def/concept/finance/sercop/objective/107,METRIC GROUP LIMITED,2560839,42030,46378,693,0,Web hosting and web tariff editor for 66,Vehicle Management,380000
South Lakeland District Council,http://opendatacommunities.org/id/district-council/south-lakeland,31/01/2015,Offices,Central Services,http://opendatacommunities.org/def/concept/finance/sercop/objective/102,NPS GROUP LTD,6614601,42018,46379,310.72,,No description recorded,"Works - Construction, Repair & Maintenance",390000
South Lakeland District Council,http://opendatacommunities.org/id/district-council/south-lakeland,31/01/2015,SLDC Depots,Transport Planning Policy,http://opendatacommunities.org/def/concept/finance/sercop/objective/107,NPS GROUP LTD,6614601,42018,46379,310.72,,No description recorded,"Works - Construction, Repair & Maintenance",390000
South Lakeland District Council,http://opendatacommunities.org/id/district-council/south-lakeland,31/01/2015,Public Halls,Cultural Environmental Regulatory & Planning Services,http://opendatacommunities.org/def/concept/finance/sercop/objective/104,NPS GROUP LTD,6614601,42018,46379,310.72,,No description recorded,"Works - Construction, Repair & Maintenance",390000
South Lakeland District Council,http://opendatacommunities.org/id/district-council/south-lakeland,31/01/2015,Public Halls,Cultural Environmental Regulatory & Planning Services,http://opendatacommunities.org/def/concept/finance/sercop/objective/104,NPS GROUP LTD,6614601,42018,46379,310.72,,No description recorded,"Works - Construction, Repair & Maintenance",390000
South Lakeland District Council,http://opendatacommunities.org/id/district-council/south-lakeland,31/01/2015,Financial Services,Central Services,http://opendatacommunities.org/def/concept/finance/sercop/objective/102,GREATER MANCHESTER PENSION FUND,,42018,46383,274.84,0,Qtr contribution re past pensions,Financial Services,200000
South Lakeland District Council,http://opendatacommunities.org/id/district-council/south-lakeland,31/01/2015,Payroll Deductions,Non-Service Payments,,INLAND REVENUE (CHAPS),,42005,46385,93299.55,,No description recorded,Financial Services,200000
South Lakeland District Council,http://opendatacommunities.org/id/district-council/south-lakeland,31/01/2015,Payroll Deductions,Non-Service Payments,,INLAND REVENUE (CHAPS),,42005,46385,102381.32,,No description recorded,Financial Services,200000
South Lakeland District Council,http://opendatacommunities.org/id/district-council/south-lakeland,31/01/2015,Payroll Deductions,Non-Service Payments,,INLAND REVENUE (CHAPS),,42005,46385,894,,No description recorded,Financial Services,200000
South Lakeland District Council,http://opendatacommunities.org/id/district-council/south-lakeland,31/01/2015,Payroll Deductions,Non-Service Payments,,CUMBRIA COUNTY COUNCIL (CHAPS),,42005,46387,104622.21,,No description recorded,Financial Services,200000
South Lakeland District Council,http://opendatacommunities.org/id/district-council/south-lakeland,31/01/2015,Payroll Deductions,Non-Service Payments,,CUMBRIA COUNTY COUNCIL (CHAPS),,42005,46387,47037.87,,No description recorded,Financial Services,200000
South Lakeland District Council,http://opendatacommunities.org/id/district-council/south-lakeland,31/01/2015,Business Support Community Services,Internal Trading Accounts,,H WICKS (LINDAL) LTD,754590,42023,46395,2021.88,0,Paper handling - December (estimated),Environmental Services,180000
South Lakeland District Council,http://opendatacommunities.org/id/district-council/south-lakeland,31/01/2015,Business Support Community Services,Internal Trading Accounts,,FUCHS LUBRICANTS (UK) PLC,2412689,42025,46396,2040,0,Oil,Cleaning & Janitorial,130000
South Lakeland District Council,http://opendatacommunities.org/id/district-council/south-lakeland,31/01/2015,Social Enterprise Admin,Cultural Environmental Regulatory & Planning Services,http://opendatacommunities.org/def/concept/finance/sercop/objective/104,HORSEMAT LTD,5738280,42030,46399,1106.56,0,Grass support Rubber hollow mats 1m x,Sports & Playground Equipment & Maintenance,330000
South Lakeland District Council,http://opendatacommunities.org/id/district-council/south-lakeland,31/01/2015,Legal Services,Cultural Environmental Regulatory & Planning Services,http://opendatacommunities.org/def/concept/finance/sercop/objective/104,THE FAIRGROUND,,42032,46400,371.32,0,3 x boxes (1000) per box Classic instant,Catering,110000
South Lakeland District Council,http://opendatacommunities.org/id/district-council/south-lakeland,31/01/2015,Legal Services,Central Services,http://opendatacommunities.org/def/concept/finance/sercop/objective/102,VENN GROUP RECRUITMENT SOLUTIONS,,42018,46401,502.1,0,Wages for LF from w/k ending,Consultancy,150000
South Lakeland District Council,http://opendatacommunities.org/id/district-council/south-lakeland,31/01/2015,Social Enterprise Admin,Highways & Transport Services,http://opendatacommunities.org/def/concept/finance/sercop/objective/107,CREDIT CALL LTD (NCR),,42005,46408,312.24,0,Credit Call Commission 2014/15,Financial Services,200000
South Lakeland District Council,http://opendatacommunities.org/id/district-council/south-lakeland,31/01/2015,Business Support Community Services,SLDC as Agent,,DISCLOSURE AND BARRING SERVICE,,42018,46409,352,0,DBS checks for taxi drivers,Legal Services,280000
South Lakeland District Council,http://opendatacommunities.org/id/district-council/south-lakeland,31/01/2015,Development Implementation,Cultural Environmental Regulatory & Planning Services,http://opendatacommunities.org/def/concept/finance/sercop/objective/104,PS BUSINESS MATTERS,8147185,42030,46411,1348,0,Kendal Futures Programme Support,Environmental Services,180000
South Lakeland District Council,http://opendatacommunities.org/id/district-council/south-lakeland,31/01/2015,Development Implementation,Cultural Environmental Regulatory & Planning Services,http://opendatacommunities.org/def/concept/finance/sercop/objective/104,PS BUSINESS MATTERS,8147185,42030,46411,652,0,Kendal Futures Programme Support,Consultancy,150000
South Lakeland District Council,http://opendatacommunities.org/id/district-council/south-lakeland,31/01/2015,Information Services,Central Services,http://opendatacommunities.org/def/concept/finance/sercop/objective/102,ITPS Professional Services Ltd (DD),,42005,46416,913.24,,No description recorded,Information Communication Technology,270000
South Lakeland District Council,http://opendatacommunities.org/id/district-council/south-lakeland,31/01/2015,Holding Accounts,SLDC as Agent,,ITPS Professional Services Ltd (DD),,42005,46416,479.74,,No description recorded,Financial Services,200000
South Lakeland District Council,http://opendatacommunities.org/id/district-council/south-lakeland,31/01/2015,Social Enterprise Admin,Cultural Environmental Regulatory & Planning Services,http://opendatacommunities.org/def/concept/finance/sercop/objective/104,AMENITY TREE CARE LTD,4141279,42018,46418,1090,0,"Client specification: Lime, crown raise",Environmental Services,180000
South Lakeland District Council,http://opendatacommunities.org/id/district-council/south-lakeland,31/01/2015,Social Enterprise Admin,Cultural Environmental Regulatory & Planning Services,http://opendatacommunities.org/def/concept/finance/sercop/objective/104,AMENITY TREE CARE LTD,4141279,42018,46419,2780,0,Stonecross Green Kendal,Environmental Services,180000
South Lakeland District Council,http://opendatacommunities.org/id/district-council/south-lakeland,31/01/2015,Business Support Community Services,Internal Trading Accounts,,CUMBRIA RADIATORS,5580363,42018,46420,439.9,0,Fuel tank,Vehicle Management,380000
South Lakeland District Council,http://opendatacommunities.org/id/district-council/south-lakeland,31/01/2015,Business Support Community Services,Internal Trading Accounts,,ALLSTAR BUSINESS SOLUTIONS LTD (NCR),2631112,42005,46422,2813.32,0,Fuel to 31/12,Utilities,370000
South Lakeland District Council,http://opendatacommunities.org/id/district-council/south-lakeland,31/01/2015,Business Support Community Services,Internal Trading Accounts,,ALLSTAR BUSINESS SOLUTIONS LTD (NCR),2631112,42005,46422,12870.77,0,Fuel to 31/12,Utilities,370000
South Lakeland District Council,http://opendatacommunities.org/id/district-council/south-lakeland,31/01/2015,Business Support Community Services,Internal Trading Accounts,,GREENCHEM SOLUTIONS LTD,5175801,42018,46423,250.68,0,Ad blue,Vehicle Management,380000
South Lakeland District Council,http://opendatacommunities.org/id/district-council/south-lakeland,31/01/2015,Business Support Community Services,Environment Regulatory,,Great Green Systems Ltd,6632263,42025,46425,569.8,0,Replaces order 24352.,Vehicle Management,380000
South Lakeland District Council,http://opendatacommunities.org/id/district-council/south-lakeland,31/01/2015,Offices,Central Services,http://opendatacommunities.org/def/concept/finance/sercop/objective/102,NPOWER LTD (NCR),,42005,46428,3941.84,,No description recorded,Utilities,370000
South Lakeland District Council,http://opendatacommunities.org/id/district-council/south-lakeland,31/01/2015,Car Parks,Highways & Transport Services,http://opendatacommunities.org/def/concept/finance/sercop/objective/107,NPOWER LTD (NCR),,42005,46428,584.05,,No description recorded,Utilities,370000
South Lakeland District Council,http://opendatacommunities.org/id/district-council/south-lakeland,31/01/2015,Public Halls,Cultural Environmental Regulatory & Planning Services,http://opendatacommunities.org/def/concept/finance/sercop/objective/104,NPOWER LTD (NCR),,42005,46428,757.21,,No description recorded,Utilities,370000
South Lakeland District Council,http://opendatacommunities.org/id/district-council/south-lakeland,31/01/2015,Development Strategy,Central Services,http://opendatacommunities.org/def/concept/finance/sercop/objective/102,RTPI SUBSCRIPTIONS,,42023,46434,290,0,RTPI subscription for 2015,Financial Services,200000
South Lakeland District Council,http://opendatacommunities.org/id/district-council/south-lakeland,31/01/2015,Development Strategy,Central Services,http://opendatacommunities.org/def/concept/finance/sercop/objective/102,RTPI SUBSCRIPTIONS,,42023,46435,290,0,RTPI subscription for 2015,Financial Services,200000
South Lakeland District Council,http://opendatacommunities.org/id/district-council/south-lakeland,31/01/2015,Development Strategy,Central Services,http://opendatacommunities.org/def/concept/finance/sercop/objective/102,RTPI SUBSCRIPTIONS,,42023,46437,290,0,RTPI subscription for 2015,Financial Services,200000
South Lakeland District Council,http://opendatacommunities.org/id/district-council/south-lakeland,31/01/2015,Business Support Community Services,Internal Trading Accounts,,CUMBRIA TRUCK CENTRE LTD,4298488,42032,46438,880,0,Drag links,Vehicle Management,380000
South Lakeland District Council,http://opendatacommunities.org/id/district-council/south-lakeland,31/01/2015,Business Support Community Services,Internal Trading Accounts,,Masterstaff Limited,2777593,42023,46440,356.4,0,PO -  December 2014,Consultancy,150000
South Lakeland District Council,http://opendatacommunities.org/id/district-council/south-lakeland,31/01/2015,Business Support Community Services,Internal Trading Accounts,,Masterstaff Limited,2777593,42023,46441,437.4,0,PO -  December 2014,Consultancy,150000
South Lakeland District Council,http://opendatacommunities.org/id/district-council/south-lakeland,31/01/2015,Human Resources,Central Services,http://opendatacommunities.org/def/concept/finance/sercop/objective/102,EMPLOYMENT PAGES LTD,7363099,42032,46443,489.6,0,Advert for CIL Officer and Coro Hall,Human Resources,260000
South Lakeland District Council,http://opendatacommunities.org/id/district-council/south-lakeland,31/01/2015,Printing Section,Central Services,http://opendatacommunities.org/def/concept/finance/sercop/objective/102,ROSEFOX PAPER LIMITED,1655083,42030,46449,390,0,Pallet of A4 80 Paper One,Stationery,340000
South Lakeland District Council,http://opendatacommunities.org/id/district-council/south-lakeland,31/01/2015,Business Support Community Services,Housing Services,http://opendatacommunities.org/def/concept/finance/sercop/objective/108,FIONA & JOHN ARMER,,42018,46456,890,0,"Monthly rent payment for Flats 1 & 2, 13",Social Community Care Supplies & Services,410000
South Lakeland District Council,http://opendatacommunities.org/id/district-council/south-lakeland,31/01/2015,Business Support Community Services,Housing Services,http://opendatacommunities.org/def/concept/finance/sercop/objective/108,Mr David Rigg,,42018,46457,1190,0,"Monthly rent for Flat 1 A Kentworks, 1",Social Community Care Supplies & Services,410000
South Lakeland District Council,http://opendatacommunities.org/id/district-council/south-lakeland,31/01/2015,Social Enterprise Admin,Cultural Environmental Regulatory & Planning Services,http://opendatacommunities.org/def/concept/finance/sercop/objective/104,North Country Leisure,3683103,42018,46458,22279,0,Kirkby Kendal School - Invoice 378704,Arts & Leisure Services,290000
South Lakeland District Council,http://opendatacommunities.org/id/district-council/south-lakeland,31/01/2015,Social Enterprise Admin,Cultural Environmental Regulatory & Planning Services,http://opendatacommunities.org/def/concept/finance/sercop/objective/104,NPS GROUP LTD,6614601,42018,46464,1287.76,0,Design works associated with Windermere,"Works - Construction, Repair & Maintenance",390000
South Lakeland District Council,http://opendatacommunities.org/id/district-council/south-lakeland,31/01/2015,Social Enterprise Admin,Highways & Transport Services,http://opendatacommunities.org/def/concept/finance/sercop/objective/107,METRIC GROUP LIMITED,2560839,42018,46467,926.27,0,Repairs to valdalism carried out at,Vehicle Management,380000
South Lakeland District Council,http://opendatacommunities.org/id/district-council/south-lakeland,31/01/2015,Financial Services,SLDC as Agent,,E H BOOTH & CO LTD,,42023,46470,94368.1,0,Booths Kirkby Lonsdale,Financial Services,200000
South Lakeland District Council,http://opendatacommunities.org/id/district-council/south-lakeland,31/01/2015,Financial Services,SLDC as Agent,,E H BOOTH & CO LTD,,42023,46470,9866.13,0,Booths Kirkby Lonsdale,Financial Services,200000
South Lakeland District Council,http://opendatacommunities.org/id/district-council/south-lakeland,31/01/2015,Financial Services,SLDC as Agent,,E H BOOTH & CO LTD,,42023,46470,32417.6,0,Booths Kirkby Lonsdale,Financial Services,200000
South Lakeland District Council,http://opendatacommunities.org/id/district-council/south-lakeland,31/01/2015,Financial Services,SLDC as Agent,,KIRKLAND TRUST (KENDAL),,42023,46471,4207.1,0,14/15 Kirkland Car Park Income,Financial Services,200000
South Lakeland District Council,http://opendatacommunities.org/id/district-council/south-lakeland,31/01/2015,Financial Services,SLDC as Agent,,LAKELAND ESTATES (AMBLESIDE) LTD,3022544,42023,46472,7285.85,0,14/15 Millerfield Car Park Income,Financial Services,200000
South Lakeland District Council,http://opendatacommunities.org/id/district-council/south-lakeland,31/01/2015,Development Strategy,Housing Services,http://opendatacommunities.org/def/concept/finance/sercop/objective/108,MORGAN HUNT UK LIMITED,4349535,42023,46473,773.3,0,"CA, Housing Advice Manager",Consultancy,150000
South Lakeland District Council,http://opendatacommunities.org/id/district-council/south-lakeland,31/01/2015,Development Strategy,Housing Services,http://opendatacommunities.org/def/concept/finance/sercop/objective/108,MORGAN HUNT UK LIMITED,4349535,42023,46473,773.3,0,"CA, Housing Advice Manager",Consultancy,150000
South Lakeland District Council,http://opendatacommunities.org/id/district-council/south-lakeland,31/01/2015,Business Support Community Services,Housing Services,http://opendatacommunities.org/def/concept/finance/sercop/objective/108,James Andrews Recruitment Solutions,6834852,42023,46474,937.5,0,Payment ,Consultancy,150000
South Lakeland District Council,http://opendatacommunities.org/id/district-council/south-lakeland,31/01/2015,Business Support Community Services,Housing Services,http://opendatacommunities.org/def/concept/finance/sercop/objective/108,James Andrews Recruitment Solutions,6834852,42023,46475,625,0,Payment ,Consultancy,150000
South Lakeland District Council,http://opendatacommunities.org/id/district-council/south-lakeland,31/01/2015,ICT Group,Cultural Environmental Regulatory & Planning Services,http://opendatacommunities.org/def/concept/finance/sercop/objective/104,PROBRAND LTD,2653446,42032,46476,395.2,0,Quotation 1213121,Consultancy,150000
South Lakeland District Council,http://opendatacommunities.org/id/district-council/south-lakeland,31/01/2015,Development Strategy,SLDC as Agent,,CUMBRIA RURAL HOUSING TRUST,2920997,42023,46477,1742,0,Housing Survey for Heversham and,Financial Services,200000
South Lakeland District Council,http://opendatacommunities.org/id/district-council/south-lakeland,31/01/2015,Social Enterprise Admin,Highways & Transport Services,http://opendatacommunities.org/def/concept/finance/sercop/objective/107,BEMROSE BOOTH PARAGON LTD,4891375,42032,46478,1779,0,"300,000 Aura self adhesive pay and",Stationery,340000
South Lakeland District Council,http://opendatacommunities.org/id/district-council/south-lakeland,31/01/2015,Business Support Community Services,Internal Trading Accounts,,ARCO LIMITED,133804,42030,46481,1020,0,Prescription safety glasses ,Clothing,140000
South Lakeland District Council,http://opendatacommunities.org/id/district-council/south-lakeland,31/01/2015,Business Support Community Services,Central Services,http://opendatacommunities.org/def/concept/finance/sercop/objective/102,MARGARET BARROW INTERIORS LTD T/A MBI,,42032,46483,656,0,1 x table,Furniture & Soft Furnishings,210000
South Lakeland District Council,http://opendatacommunities.org/id/district-council/south-lakeland,31/01/2015,Coronation Hall,Cultural Environmental Regulatory & Planning Services,http://opendatacommunities.org/def/concept/finance/sercop/objective/104,Monster Monster,,42023,46489,400,0,Work on Facebook and Twitter to y/e 31,Consultancy,150000
South Lakeland District Council,http://opendatacommunities.org/id/district-council/south-lakeland,31/01/2015,Social Enterprise Admin,Cultural Environmental Regulatory & Planning Services,http://opendatacommunities.org/def/concept/finance/sercop/objective/104,URBANVISION PARTNERSHIP LTD,,42032,46490,4807.13,0,BUSINESS DEVELOPMENT AND PROJECT,Consultancy,150000
South Lakeland District Council,http://opendatacommunities.org/id/district-council/south-lakeland,31/01/2015,Social Enterprise Admin,Cultural Environmental Regulatory & Planning Services,http://opendatacommunities.org/def/concept/finance/sercop/objective/104,URBANVISION PARTNERSHIP LTD,,42032,46491,948.84,0,BUSINESS DEVELOPMENT AND PROJECT,Consultancy,150000
South Lakeland District Council,http://opendatacommunities.org/id/district-council/south-lakeland,31/01/2015,Social Enterprise Admin,Cultural Environmental Regulatory & Planning Services,http://opendatacommunities.org/def/concept/finance/sercop/objective/104,RTPI SUBSCRIPTIONS,,42023,46492,290,0,MB,Financial Services,200000
South Lakeland District Council,http://opendatacommunities.org/id/district-council/south-lakeland,31/01/2015,Development Implementation,Cultural Environmental Regulatory & Planning Services,http://opendatacommunities.org/def/concept/finance/sercop/objective/104,CTM Carlisle Ltd,,42025,46493,500,0,Road Closure & Operatives for Kendal,Environmental Services,180000
South Lakeland District Council,http://opendatacommunities.org/id/district-council/south-lakeland,31/01/2015,Offices,Central Services,http://opendatacommunities.org/def/concept/finance/sercop/objective/102,CRUDEN PROPERTY SERVICES LTD,3851237,42032,46495,370.22,,No description recorded,"Works - Construction, Repair & Maintenance",390000
South Lakeland District Council,http://opendatacommunities.org/id/district-council/south-lakeland,31/01/2015,Car Parks,Highways & Transport Services,http://opendatacommunities.org/def/concept/finance/sercop/objective/107,CRUDEN PROPERTY SERVICES LTD,3851237,42032,46495,2238,,No description recorded,Street & Traffic Management,350000
South Lakeland District Council,http://opendatacommunities.org/id/district-council/south-lakeland,31/01/2015,Car Parks,Highways & Transport Services,http://opendatacommunities.org/def/concept/finance/sercop/objective/107,CRUDEN PROPERTY SERVICES LTD,3851237,42032,46495,715.76,,No description recorded,Street & Traffic Management,350000
South Lakeland District Council,http://opendatacommunities.org/id/district-council/south-lakeland,31/01/2015,Car Parks,Highways & Transport Services,http://opendatacommunities.org/def/concept/finance/sercop/objective/107,CRUDEN PROPERTY SERVICES LTD,3851237,42032,46495,253,,No description recorded,"Works - Construction, Repair & Maintenance",390000
South Lakeland District Council,http://opendatacommunities.org/id/district-council/south-lakeland,31/01/2015,SLDC Depots,Transport Planning Policy,http://opendatacommunities.org/def/concept/finance/sercop/objective/107,CRUDEN PROPERTY SERVICES LTD,3851237,42032,46495,987.6,,No description recorded,"Works - Construction, Repair & Maintenance",390000
South Lakeland District Council,http://opendatacommunities.org/id/district-council/south-lakeland,31/01/2015,Town View Field Hostel,Housing Services,http://opendatacommunities.org/def/concept/finance/sercop/objective/108,CRUDEN PROPERTY SERVICES LTD,3851237,42032,46495,697.9,,No description recorded,"Works - Construction, Repair & Maintenance",390000
South Lakeland District Council,http://opendatacommunities.org/id/district-council/south-lakeland,31/01/2015,Leisure Centres (incl Pools),Cultural Environmental Regulatory & Planning Services,http://opendatacommunities.org/def/concept/finance/sercop/objective/104,CRUDEN PROPERTY SERVICES LTD,3851237,42032,46495,767.39,,No description recorded,"Works - Construction, Repair & Maintenance",390000
South Lakeland District Council,http://opendatacommunities.org/id/district-council/south-lakeland,31/01/2015,Lake Windermere,Cultural Environmental Regulatory & Planning Services,http://opendatacommunities.org/def/concept/finance/sercop/objective/104,CRUDEN PROPERTY SERVICES LTD,3851237,42032,46495,997.52,,No description recorded,"Works - Construction, Repair & Maintenance",390000
South Lakeland District Council,http://opendatacommunities.org/id/district-council/south-lakeland,31/01/2015,Museum,Cultural Environmental Regulatory & Planning Services,http://opendatacommunities.org/def/concept/finance/sercop/objective/104,CRUDEN PROPERTY SERVICES LTD,3851237,42032,46495,1132.92,,No description recorded,"Works - Construction, Repair & Maintenance",390000
South Lakeland District Council,http://opendatacommunities.org/id/district-council/south-lakeland,31/01/2015,Sundry Properties,External Trading Accounts,,CRUDEN PROPERTY SERVICES LTD,3851237,42032,46495,1599.34,,No description recorded,"Works - Construction, Repair & Maintenance",390000
South Lakeland District Council,http://opendatacommunities.org/id/district-council/south-lakeland,31/01/2015,Car Parks,Highways & Transport Services,http://opendatacommunities.org/def/concept/finance/sercop/objective/107,CRUDEN PROPERTY SERVICES LTD,3851237,42032,46496,8019.16,,No description recorded,Street & Traffic Management,350000
South Lakeland District Council,http://opendatacommunities.org/id/district-council/south-lakeland,31/01/2015,Car Parks,Highways & Transport Services,http://opendatacommunities.org/def/concept/finance/sercop/objective/107,CRUDEN PROPERTY SERVICES LTD,3851237,42032,46496,260.48,,No description recorded,Street & Traffic Management,350000
South Lakeland District Council,http://opendatacommunities.org/id/district-council/south-lakeland,31/01/2015,Car Parks,Highways & Transport Services,http://opendatacommunities.org/def/concept/finance/sercop/objective/107,CRUDEN PROPERTY SERVICES LTD,3851237,42032,46496,744.25,,No description recorded,Street & Traffic Management,350000
South Lakeland District Council,http://opendatacommunities.org/id/district-council/south-lakeland,31/01/2015,Car Parks,Highways & Transport Services,http://opendatacommunities.org/def/concept/finance/sercop/objective/107,CRUDEN PROPERTY SERVICES LTD,3851237,42032,46496,1604.25,,No description recorded,"Works - Construction, Repair & Maintenance",390000
South Lakeland District Council,http://opendatacommunities.org/id/district-council/south-lakeland,31/01/2015,SLDC Depots,Transport Planning Policy,http://opendatacommunities.org/def/concept/finance/sercop/objective/107,CRUDEN PROPERTY SERVICES LTD,3851237,42032,46496,1725,,No description recorded,"Works - Construction, Repair & Maintenance",390000
South Lakeland District Council,http://opendatacommunities.org/id/district-council/south-lakeland,31/01/2015,Town View Field Hostel,Housing Services,http://opendatacommunities.org/def/concept/finance/sercop/objective/108,CRUDEN PROPERTY SERVICES LTD,3851237,42032,46496,374.68,,No description recorded,"Works - Construction, Repair & Maintenance",390000
South Lakeland District Council,http://opendatacommunities.org/id/district-council/south-lakeland,31/01/2015,Public Halls,Cultural Environmental Regulatory & Planning Services,http://opendatacommunities.org/def/concept/finance/sercop/objective/104,CRUDEN PROPERTY SERVICES LTD,3851237,42032,46496,685.41,,No description recorded,"Works - Construction, Repair & Maintenance",390000
South Lakeland District Council,http://opendatacommunities.org/id/district-council/south-lakeland,31/01/2015,Public Halls,Cultural Environmental Regulatory & Planning Services,http://opendatacommunities.org/def/concept/finance/sercop/objective/104,CRUDEN PROPERTY SERVICES LTD,3851237,42032,46496,460.23,,No description recorded,"Works - Construction, Repair & Maintenance",390000
South Lakeland District Council,http://opendatacommunities.org/id/district-council/south-lakeland,31/01/2015,Sundry Properties,External Trading Accounts,,CRUDEN PROPERTY SERVICES LTD,3851237,42032,46496,2190.83,,No description recorded,"Works - Construction, Repair & Maintenance",390000
South Lakeland District Council,http://opendatacommunities.org/id/district-council/south-lakeland,31/01/2015,Social Enterprise Admin,Cultural Environmental Regulatory & Planning Services,http://opendatacommunities.org/def/concept/finance/sercop/objective/104,PAUL BENNETT LANDSCAPES LTD,7264321,42025,46503,600,0,Work carried out at Croftlands - Laid,Sports & Playground Equipment & Maintenance,330000
South Lakeland District Council,http://opendatacommunities.org/id/district-council/south-lakeland,31/01/2015,Financial Services,Cultural Environmental Regulatory & Planning Services,http://opendatacommunities.org/def/concept/finance/sercop/objective/104,ZURICH MUNICIPAL,,42023,46504,250,0,Insurance Excess I9209/1898 ,Financial Services,200000
South Lakeland District Council,http://opendatacommunities.org/id/district-council/south-lakeland,31/01/2015,Debtors,Non-Service Payments,,SOUTH LAKES HOUSING RENT A/C,,42023,46505,2062.93,,No description recorded,Housing Management,250000
South Lakeland District Council,http://opendatacommunities.org/id/district-council/south-lakeland,31/01/2015,Social Enterprise Admin,Central Services,http://opendatacommunities.org/def/concept/finance/sercop/objective/102,CUMBRIA COUNTY COUNCIL,,42032,46507,3276.1,0,LAND CHARGE SEARCH ENQUIRIES HIGHWAYS,Financial Services,200000
South Lakeland District Council,http://opendatacommunities.org/id/district-council/south-lakeland,31/01/2015,Social Enterprise Admin,Central Services,http://opendatacommunities.org/def/concept/finance/sercop/objective/102,CUMBRIA COUNTY COUNCIL,,42032,46508,4738.8,0,LAND CHARGE SEARCH ENQUIRIES HIGHWAYS,Financial Services,200000
South Lakeland District Council,http://opendatacommunities.org/id/district-council/south-lakeland,31/01/2015,Social Enterprise Admin,Central Services,http://opendatacommunities.org/def/concept/finance/sercop/objective/102,CUMBRIA COUNTY COUNCIL,,42032,46509,4043.6,0,LAND CHARGE SEARCH ENQUIRIES HIGHWAYS,Financial Services,200000
South Lakeland District Council,http://opendatacommunities.org/id/district-council/south-lakeland,31/01/2015,Social Enterprise Admin,Central Services,http://opendatacommunities.org/def/concept/finance/sercop/objective/102,CUMBRIA COUNTY COUNCIL,,42032,46510,5048.3,0,LAND CHARGE SEARCH ENQUIRIES HIGHWAYS,Financial Services,200000
South Lakeland District Council,http://opendatacommunities.org/id/district-council/south-lakeland,31/01/2015,Offices,Central Services,http://opendatacommunities.org/def/concept/finance/sercop/objective/102,NPOWER LTD (NCR),,42005,46514,4397.74,,No description recorded,Utilities,370000
South Lakeland District Council,http://opendatacommunities.org/id/district-council/south-lakeland,31/01/2015,Car Parks,Highways & Transport Services,http://opendatacommunities.org/def/concept/finance/sercop/objective/107,NPOWER LTD (NCR),,42005,46514,580.76,,No description recorded,Utilities,370000
South Lakeland District Council,http://opendatacommunities.org/id/district-council/south-lakeland,31/01/2015,Public Halls,Cultural Environmental Regulatory & Planning Services,http://opendatacommunities.org/def/concept/finance/sercop/objective/104,NPOWER LTD (NCR),,42005,46514,589.7,,No description recorded,Utilities,370000
South Lakeland District Council,http://opendatacommunities.org/id/district-council/south-lakeland,31/01/2015,Offices,Central Services,http://opendatacommunities.org/def/concept/finance/sercop/objective/102,British Gas Trading Ltd (DD),,42005,46515,829.44,,No description recorded,Utilities,370000
South Lakeland District Council,http://opendatacommunities.org/id/district-council/south-lakeland,31/01/2015,Offices,Central Services,http://opendatacommunities.org/def/concept/finance/sercop/objective/102,British Gas Trading Ltd (DD),,42005,46515,766.94,,No description recorded,Utilities,370000
South Lakeland District Council,http://opendatacommunities.org/id/district-council/south-lakeland,31/01/2015,Offices,Central Services,http://opendatacommunities.org/def/concept/finance/sercop/objective/102,British Gas Trading Ltd (DD),,42005,46515,354.93,,No description recorded,Utilities,370000
South Lakeland District Council,http://opendatacommunities.org/id/district-council/south-lakeland,31/01/2015,SLDC Depots,Transport Planning Policy,http://opendatacommunities.org/def/concept/finance/sercop/objective/107,British Gas Trading Ltd (DD),,42005,46515,930.59,,No description recorded,Utilities,370000
South Lakeland District Council,http://opendatacommunities.org/id/district-council/south-lakeland,31/01/2015,Town View Field Hostel,Housing Services,http://opendatacommunities.org/def/concept/finance/sercop/objective/108,British Gas Trading Ltd (DD),,42005,46515,882.13,,No description recorded,Utilities,370000
South Lakeland District Council,http://opendatacommunities.org/id/district-council/south-lakeland,31/01/2015,Markets,External Trading Accounts,,British Gas Trading Ltd (DD),,42005,46515,601.15,,No description recorded,Utilities,370000
South Lakeland District Council,http://opendatacommunities.org/id/district-council/south-lakeland,31/01/2015,Markets,External Trading Accounts,,British Gas Trading Ltd (DD),,42005,46515,750.57,,No description recorded,Utilities,370000
South Lakeland District Council,http://opendatacommunities.org/id/district-council/south-lakeland,31/01/2015,Public Halls,Cultural Environmental Regulatory & Planning Services,http://opendatacommunities.org/def/concept/finance/sercop/objective/104,British Gas Trading Ltd (DD),,42005,46515,2035.18,,No description recorded,Utilities,370000
South Lakeland District Council,http://opendatacommunities.org/id/district-council/south-lakeland,31/01/2015,Public Halls,Cultural Environmental Regulatory & Planning Services,http://opendatacommunities.org/def/concept/finance/sercop/objective/104,British Gas Trading Ltd (DD),,42005,46515,2024.84,,No description recorded,Utilities,370000
South Lakeland District Council,http://opendatacommunities.org/id/district-council/south-lakeland,31/01/2015,District Special Expenses,Highways & Transport Services,http://opendatacommunities.org/def/concept/finance/sercop/objective/107,E ON ENERGY,4060387,42023,46517,1861.63,,No description recorded,Utilities,370000
South Lakeland District Council,http://opendatacommunities.org/id/district-council/south-lakeland,31/01/2015,Parish Lighting,SLDC as Agent,,E ON ENERGY,4060387,42023,46517,622.7,,No description recorded,Utilities,370000
South Lakeland District Council,http://opendatacommunities.org/id/district-council/south-lakeland,31/01/2015,Legal Services,Central Services,http://opendatacommunities.org/def/concept/finance/sercop/objective/102,WEIGHTMANS LLP,OC326117,42023,46521,1264,0,Fees in respect of ,Legal Services,280000
South Lakeland District Council,http://opendatacommunities.org/id/district-council/south-lakeland,31/01/2015,ICT Group,Central Services,http://opendatacommunities.org/def/concept/finance/sercop/objective/102,CABLE & WIRELESS UK (VODAFONE),,42023,46523,4600,0,YC00013985 1/2/15 - 31/1/16 Ulverston,Information Communication Technology,270000
South Lakeland District Council,http://opendatacommunities.org/id/district-council/south-lakeland,31/01/2015,Electoral Services,Central Services,http://opendatacommunities.org/def/concept/finance/sercop/objective/102,ASSOCIATION OF ELECTORAL ADMINISTRATORS,2406897,42032,46524,420,0,Returning Officer,Education,170000
South Lakeland District Council,http://opendatacommunities.org/id/district-council/south-lakeland,31/01/2015,Electoral Services,Central Services,http://opendatacommunities.org/def/concept/finance/sercop/objective/102,HALAROSE LIMITED,1362834,42023,46525,835.5,0,Halarose User Group Cardiff ,Education,170000
South Lakeland District Council,http://opendatacommunities.org/id/district-council/south-lakeland,31/01/2015,Social Enterprise Admin,Cultural Environmental Regulatory & Planning Services,http://opendatacommunities.org/def/concept/finance/sercop/objective/104,Cleartrack (EvL) Ltd,3881690,42032,46535,866.24,0,Castle Rise (Stop/Go Boards required),Environmental Services,180000
South Lakeland District Council,http://opendatacommunities.org/id/district-council/south-lakeland,31/01/2015,Social Enterprise Admin,Highways & Transport Services,http://opendatacommunities.org/def/concept/finance/sercop/objective/107,G4S SECURE SOLUTIONS (UK) LTD,1046019,42023,46537,833.18,0,Patrol Services for South Lakeland House,Consultancy,150000
South Lakeland District Council,http://opendatacommunities.org/id/district-council/south-lakeland,31/01/2015,Social Enterprise Admin,Cultural Environmental Regulatory & Planning Services,http://opendatacommunities.org/def/concept/finance/sercop/objective/104,NPS GROUP LTD,6614601,42023,46538,880.45,0,Design works associated with Windermere,"Works - Construction, Repair & Maintenance",390000
South Lakeland District Council,http://opendatacommunities.org/id/district-council/south-lakeland,31/01/2015,Technical Team,Cultural Environmental Regulatory & Planning Services,http://opendatacommunities.org/def/concept/finance/sercop/objective/104,Matchtech,2526418,42030,46544,1058.4,0,TO SUPPLY  DAVID GIBSON CONTRACT 16,Consultancy,150000
South Lakeland District Council,http://opendatacommunities.org/id/district-council/south-lakeland,31/01/2015,Social Enterprise Admin,Cultural Environmental Regulatory & Planning Services,http://opendatacommunities.org/def/concept/finance/sercop/objective/104,Matchtech,2526418,42030,46545,1068.19,0,TO SUPPLY DEVELOPMENT CONTROL TEAM,Consultancy,150000
South Lakeland District Council,http://opendatacommunities.org/id/district-council/south-lakeland,31/01/2015,Revenues and Benefits,Central Services,http://opendatacommunities.org/def/concept/finance/sercop/objective/102,MERITEC LTD,3224622,42030,46546,558,0,RAB Processing Contract and Agency,Consultancy,150000
South Lakeland District Council,http://opendatacommunities.org/id/district-council/south-lakeland,31/01/2015,Revenues and Benefits,Central Services,http://opendatacommunities.org/def/concept/finance/sercop/objective/102,MERITEC LTD,3224622,42032,46547,418.5,0,RAB Processing Contract and Agency,Consultancy,150000
South Lakeland District Council,http://opendatacommunities.org/id/district-council/south-lakeland,31/01/2015,Revenues and Benefits,SLDC as Agent,,ROYAL MAIL GROUP PLC,,42023,46548,1984.48,0,2014-15  Postal Charges a/c 0198123013,Financial Services,200000
South Lakeland District Council,http://opendatacommunities.org/id/district-council/south-lakeland,31/01/2015,Financial Services,Central Services,http://opendatacommunities.org/def/concept/finance/sercop/objective/102,MEANTIME INFORMATION TECHNOLOGIES LTD,2589414,42030,46550,499,0,Annual Licence fee for the Procurement,Consultancy,150000
South Lakeland District Council,http://opendatacommunities.org/id/district-council/south-lakeland,31/01/2015,Social Enterprise Admin,Cultural Environmental Regulatory & Planning Services,http://opendatacommunities.org/def/concept/finance/sercop/objective/104,RESOLUTION DATA MANAGEMENT LTD,1910045,42023,46552,3168.74,0,"SCANNING OF BC 2008 FILES, CONVERT TO",,
South Lakeland District Council,http://opendatacommunities.org/id/district-council/south-lakeland,31/01/2015,Business Support Community Services,Housing Services,http://opendatacommunities.org/def/concept/finance/sercop/objective/108,Landlord,,42023,46554,520,0,Monthly rent ,Social Community Care Supplies & Services,410000
South Lakeland District Council,http://opendatacommunities.org/id/district-council/south-lakeland,31/01/2015,Development Implementation,Central Services,http://opendatacommunities.org/def/concept/finance/sercop/objective/102,NPS GROUP LTD,6614601,42032,46558,38333.33,0,Professional Property Services for,"Works - Construction, Repair & Maintenance",390000
South Lakeland District Council,http://opendatacommunities.org/id/district-council/south-lakeland,31/01/2015,Development Implementation,Cultural Environmental Regulatory & Planning Services,http://opendatacommunities.org/def/concept/finance/sercop/objective/104,SKV Communications,3495502,42025,46561,700,0,Provision of PR/Marketing Support for,Environmental Services,180000
South Lakeland District Council,http://opendatacommunities.org/id/district-council/south-lakeland,31/01/2015,Development Implementation,Cultural Environmental Regulatory & Planning Services,http://opendatacommunities.org/def/concept/finance/sercop/objective/104,SKV Communications,3495502,42025,46562,1081.25,0,Provision of PR/Marketing Support for,Environmental Services,180000
South Lakeland District Council,http://opendatacommunities.org/id/district-council/south-lakeland,31/01/2015,Environment and Housing,Housing,http://opendatacommunities.org/def/concept/finance/sercop/objective/108,C W COX & SONS (KENDAL) LTD,3498844,42023,46563,4158.74,0,"Kendal, LA9 7LW",Financial Services,200000
South Lakeland District Council,http://opendatacommunities.org/id/district-council/south-lakeland,31/01/2015,Environment and Housing,Housing,http://opendatacommunities.org/def/concept/finance/sercop/objective/108,ULTRACARE PROPERTY MANAGEMENT LTD,5020554,42023,46564,3618,0,"Windermere, LA23 2LH",Financial Services,200000
South Lakeland District Council,http://opendatacommunities.org/id/district-council/south-lakeland,31/01/2015,Human Resources,Non-Service Payments,,CYCLESCHEME LTD,5363678,42025,46565,411.05,0,W258846 cycle,Financial Services,200000
South Lakeland District Council,http://opendatacommunities.org/id/district-council/south-lakeland,31/01/2015,Social Enterprise Admin,Central Services,http://opendatacommunities.org/def/concept/finance/sercop/objective/102,LAKE DISTRICT NATIONAL PARK AUTHORITY,,42032,46570,3297.5,0,LAND CHARGE SEARCH ENQUIRIES LDNPA,Financial Services,200000
South Lakeland District Council,http://opendatacommunities.org/id/district-council/south-lakeland,31/01/2015,Financial Services,Central Services,http://opendatacommunities.org/def/concept/finance/sercop/objective/102,CUMBRIA COUNTY COUNCIL,,42032,46571,15300,0,Internal Audit Service,Facilities & Management Services,190000
South Lakeland District Council,http://opendatacommunities.org/id/district-council/south-lakeland,31/01/2015,Legal Services,Central Services,http://opendatacommunities.org/def/concept/finance/sercop/objective/102,VENN GROUP RECRUITMENT SOLUTIONS,,42025,46572,464.06,0,Wages from w/k ending,Consultancy,150000
South Lakeland District Council,http://opendatacommunities.org/id/district-council/south-lakeland,31/01/2015,Social Enterprise Admin,Cultural Environmental Regulatory & Planning Services,http://opendatacommunities.org/def/concept/finance/sercop/objective/104,ARB CONSULTANTS LTD,6082066,42025,46573,2931.83,0,To provide tree officer services 1.10.14,Facilities & Management Services,190000
South Lakeland District Council,http://opendatacommunities.org/id/district-council/south-lakeland,31/01/2015,ICT Group,Central Services,http://opendatacommunities.org/def/concept/finance/sercop/objective/102,PROBRAND LTD,2653446,42032,46584,612.6,0,LBC178/4X90E51405  Lenovo - ThinkPad USB,Information Communication Technology,270000
South Lakeland District Council,http://opendatacommunities.org/id/district-council/south-lakeland,31/01/2015,Holding Accounts,SLDC as Agent,,ONE OFF TICKET SALES (CORO HALL),,42025,46585,586.5,,No description recorded,Financial Services,200000
South Lakeland District Council,http://opendatacommunities.org/id/district-council/south-lakeland,31/01/2015,Policy & Partnerships,Cultural Environmental Regulatory & Planning Services,http://opendatacommunities.org/def/concept/finance/sercop/objective/104,GRANTS- MISCELLANEOUS,,42030,46586,1000,0,It will provide a vital piece of,Financial Services,200000
South Lakeland District Council,http://opendatacommunities.org/id/district-council/south-lakeland,31/01/2015,Business Support Community Services,Internal Trading Accounts,,ARCO LIMITED,133804,42030,46587,317.43,0,Shoes ,Clothing,140000
South Lakeland District Council,http://opendatacommunities.org/id/district-council/south-lakeland,31/01/2015,Business Support Community Services,Internal Trading Accounts,,CUMBRIA TRUCK CENTRE LTD,4298488,42032,46589,355.57,0,Pump (26168),Vehicle Management,380000
South Lakeland District Council,http://opendatacommunities.org/id/district-council/south-lakeland,31/01/2015,Business Support Community Services,Internal Trading Accounts,,CUMBRIA TRUCK CENTRE LTD,4298488,42032,46591,552.69,0,Pump (26168),Vehicle Management,380000
South Lakeland District Council,http://opendatacommunities.org/id/district-council/south-lakeland,31/01/2015,Business Support Community Services,Cultural Environmental Regulatory & Planning Services,http://opendatacommunities.org/def/concept/finance/sercop/objective/104,Eunomia Research & Consulting Ltd,4150627,42032,46592,13233.75,0,In respect of support work for round,Consultancy,150000
South Lakeland District Council,http://opendatacommunities.org/id/district-council/south-lakeland,31/01/2015,Business Support Community Services,Internal Trading Accounts,,FAUN ZOELLER (UK) LTD,751804,42025,46594,278.88,0,Brackets,Vehicle Management,380000
South Lakeland District Council,http://opendatacommunities.org/id/district-council/south-lakeland,31/01/2015,Holding Accounts,SLDC as Agent,,ONE OFF TICKET SALES (CORO HALL),,42025,46600,5180,,No description recorded,Financial Services,200000
South Lakeland District Council,http://opendatacommunities.org/id/district-council/south-lakeland,31/01/2015,Business Support Community Services,Housing Services,http://opendatacommunities.org/def/concept/finance/sercop/objective/108,Landlord,7803122,42025,46601,500,0,Monthly rent ,Social Community Care Supplies & Services,410000
South Lakeland District Council,http://opendatacommunities.org/id/district-council/south-lakeland,31/01/2015,Business Support Community Services,Housing Services,http://opendatacommunities.org/def/concept/finance/sercop/objective/108,Landlord,,42025,46602,625,0,Monthly rent ,Social Community Care Supplies & Services,410000
South Lakeland District Council,http://opendatacommunities.org/id/district-council/south-lakeland,31/01/2015,Business Support Community Services,Housing Services,http://opendatacommunities.org/def/concept/finance/sercop/objective/108,Landlord,8672920,42025,46603,400,0,Monthly rent ,Social Community Care Supplies & Services,410000
South Lakeland District Council,http://opendatacommunities.org/id/district-council/south-lakeland,31/01/2015,Business Support Community Services,Housing Services,http://opendatacommunities.org/def/concept/finance/sercop/objective/108,Landlord,,42025,46604,500,0,Monthly rent ,Social Community Care Supplies & Services,410000
South Lakeland District Council,http://opendatacommunities.org/id/district-council/south-lakeland,31/01/2015,Holding Accounts,SLDC as Agent,,ONE OFF TICKET SALES (CORO HALL),,42025,46609,3530,,No description recorded,Financial Services,200000
South Lakeland District Council,http://opendatacommunities.org/id/district-council/south-lakeland,31/01/2015,Museum,Cultural Environmental Regulatory & Planning Services,http://opendatacommunities.org/def/concept/finance/sercop/objective/104,NPS GROUP LTD,6614601,42025,46610,640,,No description recorded,"Works - Construction, Repair & Maintenance",390000
South Lakeland District Council,http://opendatacommunities.org/id/district-council/south-lakeland,31/01/2015,Revenues and Benefits,,,Kendal BID Ltd,8986243,42025,46614,8372.54,0,Collection Figures for  October -,Financial Services,200000
South Lakeland District Council,http://opendatacommunities.org/id/district-council/south-lakeland,31/01/2015,Lake Windermere,Cultural Environmental Regulatory & Planning Services,http://opendatacommunities.org/def/concept/finance/sercop/objective/104,H & E TROTTER,3014209,42032,46618,1175,,No description recorded,"Works - Construction, Repair & Maintenance",390000
South Lakeland District Council,http://opendatacommunities.org/id/district-council/south-lakeland,31/01/2015,Development Implementation,Cultural Environmental Regulatory & Planning Services,http://opendatacommunities.org/def/concept/finance/sercop/objective/104,People Junction,,42032,46620,1500,0,Additional Support for Kendal Christmas,Environmental Services,180000
South Lakeland District Council,http://opendatacommunities.org/id/district-council/south-lakeland,31/01/2015,Business Support Community Services,Housing Services,http://opendatacommunities.org/def/concept/finance/sercop/objective/108,Vigilant Security Services UK Ltd,5914271,42030,46621,3665,0,Payment for security guard at TVF,Human Resources,260000
South Lakeland District Council,http://opendatacommunities.org/id/district-council/south-lakeland,31/01/2015,Policy & Partnerships,Cultural Environmental Regulatory & Planning Services,http://opendatacommunities.org/def/concept/finance/sercop/objective/104,Dales Way Association,,42025,46624,5000,0,"5,000 awarded from the Locally",Financial Services,200000
South Lakeland District Council,http://opendatacommunities.org/id/district-council/south-lakeland,31/01/2015,Electoral Services,Central Services,http://opendatacommunities.org/def/concept/finance/sercop/objective/102,ROYAL MAIL GROUP PLC,,42025,46625,293.53,0,Response Plus Postage,Mail Services,300000
South Lakeland District Council,http://opendatacommunities.org/id/district-council/south-lakeland,31/01/2015,Environment and Housing,Housing,http://opendatacommunities.org/def/concept/finance/sercop/objective/108,ULTRACARE PROPERTY MANAGEMENT LTD,5020554,42025,46627,3542,0,"Ulverston, LA12 9LR",Financial Services,200000
South Lakeland District Council,http://opendatacommunities.org/id/district-council/south-lakeland,31/01/2015,Debtors,Non-Service Payments,,SOUTH LAKES HOUSING RENT A/C,,42030,46628,3660.64,,No description recorded,Housing Management,250000
South Lakeland District Council,http://opendatacommunities.org/id/district-council/south-lakeland,31/01/2015,Social Enterprise Admin,Transport,http://opendatacommunities.org/def/concept/finance/sercop/objective/107,A. E. Yates Ltd,415632,42025,46629,53973.7,0,Rydal Road Car Park Bridge Widening,Financial Services,200000
South Lakeland District Council,http://opendatacommunities.org/id/district-council/south-lakeland,31/01/2015,Policy & Partnerships,Cultural Environmental Regulatory & Planning Services,http://opendatacommunities.org/def/concept/finance/sercop/objective/104,GRANTS- MISCELLANEOUS,,42025,46630,500,0,On the new projector. The purchase,Financial Services,200000
South Lakeland District Council,http://opendatacommunities.org/id/district-council/south-lakeland,31/01/2015,Policy & Partnerships,Cultural Environmental Regulatory & Planning Services,http://opendatacommunities.org/def/concept/finance/sercop/objective/104,GRANTS- MISCELLANEOUS,,42030,46631,250,0,Improved disabled access pathway. Work,Financial Services,200000
South Lakeland District Council,http://opendatacommunities.org/id/district-council/south-lakeland,31/01/2015,Holding Accounts,SLDC as Agent,,ONE OFF TICKET SALES (CORO HALL),,42025,46633,524,,No description recorded,Financial Services,200000
South Lakeland District Council,http://opendatacommunities.org/id/district-council/south-lakeland,31/01/2015,Business Support Community Services,Cultural Environmental Regulatory & Planning Services,http://opendatacommunities.org/def/concept/finance/sercop/objective/104,GRANTS- MISCELLANEOUS,,42025,46634,2797.72,0,"Flood safety measures at Hammerside,",Arts & Leisure Services,290000
South Lakeland District Council,http://opendatacommunities.org/id/district-council/south-lakeland,31/01/2015,Electoral Services,Central Services,http://opendatacommunities.org/def/concept/finance/sercop/objective/102,SCI PRINT LTD,,42032,46636,296.12,0,Weekly Mailing IER number 8,Mail Services,300000
South Lakeland District Council,http://opendatacommunities.org/id/district-council/south-lakeland,31/01/2015,Customer Services,Cultural Environmental Regulatory & Planning Services,http://opendatacommunities.org/def/concept/finance/sercop/objective/104,RIGHT 2 WORK,,42030,46641,2918,0,Bulky waste removal from April 2014 to,Environmental Services,180000
South Lakeland District Council,http://opendatacommunities.org/id/district-council/south-lakeland,31/01/2015,Research and Intelligence,Central Services,http://opendatacommunities.org/def/concept/finance/sercop/objective/102,CUMBRIA COUNTY COUNCIL,,42030,46645,775.13,0,Annual CACI License,Information Communication Technology,270000
South Lakeland District Council,http://opendatacommunities.org/id/district-council/south-lakeland,31/01/2015,Social Enterprise Admin,Culture and Related Serv,http://opendatacommunities.org/def/concept/finance/sercop/objective/104,NPS GROUP LTD,6614601,42032,46646,3000,0,To design works associated with Fery Nab,Financial Services,200000
South Lakeland District Council,http://opendatacommunities.org/id/district-council/south-lakeland,31/01/2015,Development Implementation,Central Services,http://opendatacommunities.org/def/concept/finance/sercop/objective/102,NPS GROUP LTD,6614601,42032,46647,1100,0,Agency Fees for CAB & Age Concern,"Works - Construction, Repair & Maintenance",390000
South Lakeland District Council,http://opendatacommunities.org/id/district-council/south-lakeland,31/01/2015,Coronation Hall,External Trading Accounts,,CUMBRIA WASTE RECYCLING LTD,3162439,42030,46658,457.98,0,"Emptying of skips from Market Hall,",Environmental Services,180000
South Lakeland District Council,http://opendatacommunities.org/id/district-council/south-lakeland,31/01/2015,Town View Field Hostel,Housing Services,http://opendatacommunities.org/def/concept/finance/sercop/objective/108,NPOWER LTD (NCR),,42005,46670,843.73,,No description recorded,Utilities,370000
South Lakeland District Council,http://opendatacommunities.org/id/district-council/south-lakeland,31/01/2015,Car Parks,Highways & Transport Services,http://opendatacommunities.org/def/concept/finance/sercop/objective/107,NPOWER LTD (NCR),,42005,46672,2693.37,,No description recorded,Utilities,370000
South Lakeland District Council,http://opendatacommunities.org/id/district-council/south-lakeland,31/01/2015,SLDC Depots,Transport Planning Policy,http://opendatacommunities.org/def/concept/finance/sercop/objective/107,NPOWER LTD (NCR),,42005,46672,2058.64,,No description recorded,Utilities,370000
South Lakeland District Council,http://opendatacommunities.org/id/district-council/south-lakeland,31/01/2015,SLDC Depots,Transport Planning Policy,http://opendatacommunities.org/def/concept/finance/sercop/objective/107,NPOWER LTD (NCR),,42005,46672,2286.89,,No description recorded,Utilities,370000
South Lakeland District Council,http://opendatacommunities.org/id/district-council/south-lakeland,31/01/2015,Markets,External Trading Accounts,,NPOWER LTD (NCR),,42005,46672,645.18,,No description recorded,Utilities,370000
South Lakeland District Council,http://opendatacommunities.org/id/district-council/south-lakeland,31/01/2015,Markets,External Trading Accounts,,NPOWER LTD (NCR),,42005,46672,1184.57,,No description recorded,Utilities,370000
South Lakeland District Council,http://opendatacommunities.org/id/district-council/south-lakeland,31/01/2015,Public Halls,Cultural Environmental Regulatory & Planning Services,http://opendatacommunities.org/def/concept/finance/sercop/objective/104,NPOWER LTD (NCR),,42005,46672,1105.1,,No description recorded,Utilities,370000
South Lakeland District Council,http://opendatacommunities.org/id/district-council/south-lakeland,31/01/2015,Business Support Community Services,Internal Trading Accounts,,NORTH WEST TYRE TRADERS LTD,7054888,42032,46678,530,0,Tyres,Vehicle Management,380000
South Lakeland District Council,http://opendatacommunities.org/id/district-council/south-lakeland,31/01/2015,Policy & Partnerships,Cultural Environmental Regulatory & Planning Services,http://opendatacommunities.org/def/concept/finance/sercop/objective/104,GRANTS- MISCELLANEOUS,,42030,46682,288.76,0,Repairing the South Westmorland SID,Financial Services,200000
South Lakeland District Council,http://opendatacommunities.org/id/district-council/south-lakeland,31/01/2015,Revenues and Benefits,Central Services,http://opendatacommunities.org/def/concept/finance/sercop/objective/102,BADENOCH & CLARK,1356186,42030,46685,540.07,0,Revs and Bens,Consultancy,150000
South Lakeland District Council,http://opendatacommunities.org/id/district-council/south-lakeland,31/01/2015,Revenues and Benefits,Central Services,http://opendatacommunities.org/def/concept/finance/sercop/objective/102,BADENOCH & CLARK,1356186,42030,46686,533.4,0,Revs and Bens,Consultancy,150000
South Lakeland District Council,http://opendatacommunities.org/id/district-council/south-lakeland,31/01/2015,Business Support Community Services,Central Services,http://opendatacommunities.org/def/concept/finance/sercop/objective/102,KEEP BRITAIN TIDY,3496361,42032,46690,295,0,Delegate fee at Keep Britain Tidy,Education,170000
South Lakeland District Council,http://opendatacommunities.org/id/district-council/south-lakeland,31/01/2015,Business Support Community Services,Internal Trading Accounts,,ARCO LIMITED,133804,42032,46692,651.6,0,Wipes,Clothing,140000
South Lakeland District Council,http://opendatacommunities.org/id/district-council/south-lakeland,31/01/2015,Business Support Community Services,Cultural Environmental Regulatory & Planning Services,http://opendatacommunities.org/def/concept/finance/sercop/objective/104,CUMBRIA WASTE RECYCLING LTD,3162439,42030,46693,12850.63,0,Empty recycling banks in April,Environmental Services,180000
South Lakeland District Council,http://opendatacommunities.org/id/district-council/south-lakeland,31/01/2015,Business Support Community Services,Internal Trading Accounts,,CUMBRIA WASTE RECYCLING LTD,3162439,42030,46694,1869.64,0,Skip emptying at Ecclerigg - December,Environmental Services,180000
South Lakeland District Council,http://opendatacommunities.org/id/district-council/south-lakeland,31/01/2015,Business Support Community Services,Internal Trading Accounts,,CUMBRIA WASTE RECYCLING LTD,3162439,42030,46695,525,0,Skip emptying at Ecclerigg - December,Environmental Services,180000
South Lakeland District Council,http://opendatacommunities.org/id/district-council/south-lakeland,31/01/2015,Business Support Community Services,Housing Services,http://opendatacommunities.org/def/concept/finance/sercop/objective/108,James Andrews Recruitment Solutions,6834852,42030,46697,931.25,0,Payment ,Consultancy,150000
South Lakeland District Council,http://opendatacommunities.org/id/district-council/south-lakeland,31/01/2015,Lake Wardens,Cultural Environmental Regulatory & Planning Services,http://opendatacommunities.org/def/concept/finance/sercop/objective/104,We Love Logos,,42030,46699,579.9,0,7 x Pairs of RG228 Regatta Premium,Clothing,140000
South Lakeland District Council,http://opendatacommunities.org/id/district-council/south-lakeland,31/01/2015,Development Strategy,Housing Services,http://opendatacommunities.org/def/concept/finance/sercop/objective/108,MORGAN HUNT UK LIMITED,4349535,42030,46700,781.44,0,Housing Advice Manager,Consultancy,150000
South Lakeland District Council,http://opendatacommunities.org/id/district-council/south-lakeland,31/01/2015,Development Strategy,Housing Services,http://opendatacommunities.org/def/concept/finance/sercop/objective/108,MORGAN HUNT UK LIMITED,4349535,42030,46700,781.44,0,Housing Advice Manager,Consultancy,150000
South Lakeland District Council,http://opendatacommunities.org/id/district-council/south-lakeland,31/01/2015,Revenues and Benefits,Central Services,http://opendatacommunities.org/def/concept/finance/sercop/objective/102,BADENOCH & CLARK,1356186,42030,46703,533.4,0,Revs and Bens,Consultancy,150000
South Lakeland District Council,http://opendatacommunities.org/id/district-council/south-lakeland,31/01/2015,Revenues and Benefits,Central Services,http://opendatacommunities.org/def/concept/finance/sercop/objective/102,BADENOCH & CLARK,1356186,42030,46704,566.74,0,Revs and Bens,Consultancy,150000
South Lakeland District Council,http://opendatacommunities.org/id/district-council/south-lakeland,31/01/2015,Business Support Community Services,Housing Services,http://opendatacommunities.org/def/concept/finance/sercop/objective/108,Landlord,,42030,46710,520,0,Monthly rent ,Social Community Care Supplies & Services,410000
South Lakeland District Council,http://opendatacommunities.org/id/district-council/south-lakeland,31/01/2015,Business Support Community Services,Internal Trading Accounts,,Masterstaff Limited,2777593,42030,46713,718.2,0,P S,Consultancy,150000
South Lakeland District Council,http://opendatacommunities.org/id/district-council/south-lakeland,31/01/2015,Debtors,Non-Service Payments,,CUMBRIA COUNTY COUNCIL,,42030,46714,3795,,No description recorded,Financial Services,200000
South Lakeland District Council,http://opendatacommunities.org/id/district-council/south-lakeland,31/01/2015,Policy & Partnerships,Cultural Environmental Regulatory & Planning Services,http://opendatacommunities.org/def/concept/finance/sercop/objective/104,ALLITHWAITE UPPER PARISH COUNCIL,,42030,46715,250,0,To provide Public Accessable Defriblator,Financial Services,200000
South Lakeland District Council,http://opendatacommunities.org/id/district-council/south-lakeland,31/01/2015,Debtors,Non-Service Payments,,Income & Rents Refunds/Credits BACS,,42030,46717,800,,No description recorded,Financial Services,200000
South Lakeland District Council,http://opendatacommunities.org/id/district-council/south-lakeland,31/01/2015,Payroll Deductions,Non-Service Payments,,UNISON,,42030,46718,1986.1,,No description recorded,Financial Services,200000
South Lakeland District Council,http://opendatacommunities.org/id/district-council/south-lakeland,31/01/2015,Payroll Deductions,Non-Service Payments,,GMB,,42030,46719,503.4,,No description recorded,Financial Services,200000
South Lakeland District Council,http://opendatacommunities.org/id/district-council/south-lakeland,31/01/2015,Payroll Deductions,Non-Service Payments,,PAYCARE,820791,42030,46720,342.16,,No description recorded,Financial Services,200000
South Lakeland District Council,http://opendatacommunities.org/id/district-council/south-lakeland,31/01/2015,Business Support Community Services,Internal Trading Accounts,,K S INTERNATIONAL LTD,2703321,42032,46723,310,0,Air filter,Vehicle Management,380000
South Lakeland District Council,http://opendatacommunities.org/id/district-council/south-lakeland,31/01/2015,Business Support Community Services,Internal Trading Accounts,,METCALFE BROS LTD,5899629,42032,46726,4200,0,Sweeper hire - November (estimated),Facilities & Management Services,190000
South Lakeland District Council,http://opendatacommunities.org/id/district-council/south-lakeland,31/01/2015,Revenues and Benefits,SLDC as Agent,,ROYAL MAIL GROUP PLC,,42032,46732,1372.23,0,2014-15  Postal Charges a/c 0198123013,Financial Services,200000
South Lakeland District Council,http://opendatacommunities.org/id/district-council/south-lakeland,31/01/2015,Revenues and Benefits,Central Services,http://opendatacommunities.org/def/concept/finance/sercop/objective/102,MERITEC LTD,3224622,42032,46733,279,0,RAB Processing Contract and Agency,Consultancy,150000
South Lakeland District Council,http://opendatacommunities.org/id/district-council/south-lakeland,31/01/2015,Revenues and Benefits,Highways & Transport Services,http://opendatacommunities.org/def/concept/finance/sercop/objective/107,LOOMIS UK LTD,3200432,42032,46734,914.6,0,2014 - 2015,Consultancy,150000
South Lakeland District Council,http://opendatacommunities.org/id/district-council/south-lakeland,31/01/2015,Business Support Community Services,Central Services,http://opendatacommunities.org/def/concept/finance/sercop/objective/102,Gemco Equipment Ltd,4666699,42032,46740,31995,0,SHERPA BPSTWIN Commercial Vehicle Brake,Vehicle Management,380000
South Lakeland District Council,http://opendatacommunities.org/id/district-council/south-lakeland,31/01/2015,Business Support Community Services,Housing Services,http://opendatacommunities.org/def/concept/finance/sercop/objective/108,CASTLE ALARMS 1981 LTD,9231500,42032,46742,926,0,CCTV Camera,Domestic Goods,160000
South Lakeland District Council,http://opendatacommunities.org/id/district-council/south-lakeland,31/01/2015,Social Enterprise Admin,Transport,http://opendatacommunities.org/def/concept/finance/sercop/objective/107,NPS GROUP LTD,6614601,42032,46745,1000,0,"Feasibility, planning and costing for",Financial Services,200000
South Lakeland District Council,http://opendatacommunities.org/id/district-council/south-lakeland,31/01/2015,Lake Wardens,Cultural Environmental Regulatory & Planning Services,http://opendatacommunities.org/def/concept/finance/sercop/objective/104,ROYAL YACHTING ASSOCIATION,878357,42032,46746,258.33,0,Annual Recognition Fee - Due January,Financial Services,200000
South Lakeland District Council,http://opendatacommunities.org/id/district-council/south-lakeland,31/01/2015,Legal Services,Central Services,http://opendatacommunities.org/def/concept/finance/sercop/objective/102,HYGIENE CLEANING SUPPLIES LTD,4753934,42032,46747,346.96,0,JP01 Bulk pack toilet tissue,Cleaning & Janitorial,130000
South Lakeland District Council,http://opendatacommunities.org/id/district-council/south-lakeland,31/01/2015,Social Enterprise Admin,Cultural Environmental Regulatory & Planning Services,http://opendatacommunities.org/def/concept/finance/sercop/objective/104,CONTINENTAL LANDSCAPES LTD,2108452,42032,46748,1632.98,0,Extra Works for Cemeteries April 14-,Horticultural,240000
South Lakeland District Council,http://opendatacommunities.org/id/district-council/south-lakeland,31/01/2015,Social Enterprise Admin,Cultural Environmental Regulatory & Planning Services,http://opendatacommunities.org/def/concept/finance/sercop/objective/104,CONTINENTAL LANDSCAPES LTD,2108452,42032,46749,1412.85,0,Extra Works for Cemeteries April 14-,Horticultural,240000
South Lakeland District Council,http://opendatacommunities.org/id/district-council/south-lakeland,31/01/2015,Social Enterprise Admin,Cultural Environmental Regulatory & Planning Services,http://opendatacommunities.org/def/concept/finance/sercop/objective/104,CONTINENTAL LANDSCAPES LTD,2108452,42032,46750,2289.07,0,Extra Works for Cemeteries April 14-,Horticultural,240000
South Lakeland District Council,http://opendatacommunities.org/id/district-council/south-lakeland,31/01/2015,Financial Services,Central Services,http://opendatacommunities.org/def/concept/finance/sercop/objective/102,CIPFA,2376684,42032,46757,950,0,Prince 2 Practitioner e-learning,Education,170000
South Lakeland District Council,http://opendatacommunities.org/id/district-council/south-lakeland,31/01/2015,Development Implementation,Cultural Environmental Regulatory & Planning Services,http://opendatacommunities.org/def/concept/finance/sercop/objective/104,NPS GROUP LTD,6614601,42032,46771,550,0,Project Plan for CCF Application,Financial Services,200000
South Lakeland District Council,http://opendatacommunities.org/id/district-council/south-lakeland,31/01/2015,Development Implementation,Central Services,http://opendatacommunities.org/def/concept/finance/sercop/objective/102,NPS GROUP LTD,6614601,42032,46773,1624,0,Kendal Museum Condition Survey,"Works - Construction, Repair & Maintenance",390000
South Lakeland District Council,http://opendatacommunities.org/id/district-council/south-lakeland,31/01/2015,Development Implementation,Central Services,http://opendatacommunities.org/def/concept/finance/sercop/objective/102,NPS GROUP LTD,6614601,42032,46777,450,0,"Auction June 2014, sale of surplus","Works - Construction, Repair & Maintenance",390000
South Lakeland District Council,http://opendatacommunities.org/id/district-council/south-lakeland,31/01/2015,Development Implementation,Central Services,http://opendatacommunities.org/def/concept/finance/sercop/objective/102,NPS GROUP LTD,6614601,42032,46778,3850,0,Atrium Roof feasibility and options,"Works - Construction, Repair & Maintenance",390000
South Lakeland District Council,http://opendatacommunities.org/id/district-council/south-lakeland,31/01/2015,Development Implementation,Central Services,http://opendatacommunities.org/def/concept/finance/sercop/objective/102,NPS GROUP LTD,6614601,42032,46780,2200,0,Attending meetings and Coro Hall plans,"Works - Construction, Repair & Maintenance",390000
South Lakeland District Council,http://opendatacommunities.org/id/district-council/south-lakeland,31/01/2015,Legal Services,Central Services,http://opendatacommunities.org/def/concept/finance/sercop/objective/102,VENN GROUP RECRUITMENT SOLUTIONS,,42032,46781,517.31,0,Wages from w/k ending,Consultancy,150000
South Lakeland District Council,http://opendatacommunities.org/id/district-council/south-lakeland,31/01/2015,Development Implementation,Central Services,http://opendatacommunities.org/def/concept/finance/sercop/objective/102,NPS GROUP LTD,6614601,42032,46782,750,0,Request for work on plans for Coronation,"Works - Construction, Repair & Maintenance",390000
South Lakeland District Council,http://opendatacommunities.org/id/district-council/south-lakeland,31/01/2015,Information Services,Central Services,http://opendatacommunities.org/def/concept/finance/sercop/objective/102,ITPS Professional Services Ltd (DD),,42005,46789,913.24,,No description recorded,Information Communication Technology,270000
South Lakeland District Council,http://opendatacommunities.org/id/district-council/south-lakeland,31/01/2015,Holding Accounts,SLDC as Agent,,ITPS Professional Services Ltd (DD),,42005,46789,467.01,,No description recorded,Financial Services,200000
South Lakeland District Council,http://opendatacommunities.org/id/district-council/south-lakeland,31/01/2015,Parks and Open Spaces,Cultural Environmental Regulatory & Planning Services,http://opendatacommunities.org/def/concept/finance/sercop/objective/104,BRUCE REDPATH LTD,4723453,42032,46791,378.22,,No description recorded,"Works - Construction, Repair & Maintenance",390000
South Lakeland District Council,http://opendatacommunities.org/id/district-council/south-lakeland,31/01/2015,Offices,Central Services,http://opendatacommunities.org/def/concept/finance/sercop/objective/102,CASTLE ALARMS 1981 LTD,9231500,42032,46794,265,,No description recorded,"Works - Construction, Repair & Maintenance",390000
South Lakeland District Council,http://opendatacommunities.org/id/district-council/south-lakeland,31/01/2015,Offices,Central Services,http://opendatacommunities.org/def/concept/finance/sercop/objective/102,UNDERHILL SERVICES LIMITED,6442130,42032,46805,294,,No description recorded,"Works - Construction, Repair & Maintenance",390000
South Lakeland District Council,http://opendatacommunities.org/id/district-council/south-lakeland,31/01/2015,Human Resources,Central Services,http://opendatacommunities.org/def/concept/finance/sercop/objective/102,FORBES SOLICITORS,,42032,46813,1826,0,General Legal advice,Legal Services,280000
South Lakeland District Council,http://opendatacommunities.org/id/district-council/south-lakeland,31/01/2015,Financial Services,Central Services,http://opendatacommunities.org/def/concept/finance/sercop/objective/102,REAL ASSET MANAGEMENT PLC,2454806,42032,46816,1560,0,"Annual software maintenance Asset 4000,",Information Communication Technology,270000
South Lakeland District Council,http://opendatacommunities.org/id/district-council/south-lakeland,31/01/2015,Human Resources,Central Services,http://opendatacommunities.org/def/concept/finance/sercop/objective/102,FORBES SOLICITORS,,42032,46817,406,0,General Legal advice,Legal Services,280000
South Lakeland District Council,http://opendatacommunities.org/id/district-council/south-lakeland,31/01/2015,Business Support Community Services,Central Services,http://opendatacommunities.org/def/concept/finance/sercop/objective/102,INSTITUTE OF LICENSING (EVENTS) LTD,5710898,42032,46818,275,0,How to plan a safe event,Education,170000
South Lakeland District Council,http://opendatacommunities.org/id/district-council/south-lakeland,31/01/2015,Holding Accounts,SLDC as Agent,,ONE OFF TICKET SALES (CORO HALL),,42032,46823,586.5,,No description recorded,Financial Services,200000
South Lakeland District Council,http://opendatacommunities.org/id/district-council/south-lakeland,31/01/2015,Business Support Community Services,Housing Services,http://opendatacommunities.org/def/concept/finance/sercop/objective/108,Landlord,7009105,42032,46824,480,0,Monthly rent ,Social Community Care Supplies & Services,410000
South Lakeland District Council,http://opendatacommunities.org/id/district-council/south-lakeland,31/01/2015,Business Support Community Services,Housing Services,http://opendatacommunities.org/def/concept/finance/sercop/objective/108,Landlord,,42032,46825,400,0,Monthly rent ,Social Community Care Supplies & Services,410000
South Lakeland District Council,http://opendatacommunities.org/id/district-council/south-lakeland,31/01/2015,Business Support Community Services,Housing Services,http://opendatacommunities.org/def/concept/finance/sercop/objective/108,Landlord,,42032,46826,480,0,Monthly rent ,Social Community Care Supplies & Services,410000
South Lakeland District Council,http://opendatacommunities.org/id/district-council/south-lakeland,31/01/2015,Business Support Community Services,Housing Services,http://opendatacommunities.org/def/concept/finance/sercop/objective/108,Landlord,,42032,46827,475,0,Monthly rent ,Social Community Care Supplies & Services,410000
South Lakeland District Council,http://opendatacommunities.org/id/district-council/south-lakeland,31/01/2015,Business Support Community Services,Housing Services,http://opendatacommunities.org/def/concept/finance/sercop/objective/108,Landlord,,42032,46828,500,0,Monthly rent ,Social Community Care Supplies & Services,410000
South Lakeland District Council,http://opendatacommunities.org/id/district-council/south-lakeland,31/01/2015,Business Support Community Services,Housing Services,http://opendatacommunities.org/def/concept/finance/sercop/objective/108,Landlord,,42032,46829,625,0,Monthly rent ,Social Community Care Supplies & Services,410000
South Lakeland District Council,http://opendatacommunities.org/id/district-council/south-lakeland,31/01/2015,Business Support Community Services,Housing Services,http://opendatacommunities.org/def/concept/finance/sercop/objective/108,Landlord,,42032,46830,500,0,Monthly rent ,Social Community Care Supplies & Services,410000
South Lakeland District Council,http://opendatacommunities.org/id/district-council/south-lakeland,31/01/2015,Business Support Community Services,Housing Services,http://opendatacommunities.org/def/concept/finance/sercop/objective/108,Landlord,,42032,46831,500,0,Monthly rent ,Social Community Care Supplies & Services,410000
South Lakeland District Council,http://opendatacommunities.org/id/district-council/south-lakeland,31/01/2015,Business Support Community Services,Housing Services,http://opendatacommunities.org/def/concept/finance/sercop/objective/108,Landlord,,42032,46832,410,0,Monthly rent ,Social Community Care Supplies & Services,410000
South Lakeland District Council,http://opendatacommunities.org/id/district-council/south-lakeland,31/01/2015,Business Support Community Services,Housing Services,http://opendatacommunities.org/def/concept/finance/sercop/objective/108,Landlord,,42032,46833,500,0,Monthly rent ,Social Community Care Supplies & Services,410000
South Lakeland District Council,http://opendatacommunities.org/id/district-council/south-lakeland,31/01/2015,Business Support Community Services,Housing Services,http://opendatacommunities.org/def/concept/finance/sercop/objective/108,Landlord,,42032,46834,600,0,Monthly rent ,Social Community Care Supplies & Services,410000
South Lakeland District Council,http://opendatacommunities.org/id/district-council/south-lakeland,31/01/2015,Business Support Community Services,Housing Services,http://opendatacommunities.org/def/concept/finance/sercop/objective/108,Landlord,,42032,46835,400,0,Monthly rent ,Social Community Care Supplies & Services,410000
South Lakeland District Council,http://opendatacommunities.org/id/district-council/south-lakeland,31/01/2015,Business Support Community Services,Housing Services,http://opendatacommunities.org/def/concept/finance/sercop/objective/108,Landlord,,42032,46836,400,0,Monthly rent ,Social Community Care Supplies & Services,410000
South Lakeland District Council,http://opendatacommunities.org/id/district-council/south-lakeland,31/01/2015,Business Support Community Services,Housing Services,http://opendatacommunities.org/def/concept/finance/sercop/objective/108,Landlord,,42032,46837,625,0,Monthly rent ,Social Community Care Supplies & Services,410000
South Lakeland District Council,http://opendatacommunities.org/id/district-council/south-lakeland,31/01/2015,Environment and Housing,Housing Services,http://opendatacommunities.org/def/concept/finance/sercop/objective/108,GROWING CONCERNS LANDSCAPING,,42032,46838,895.48,0,Payment for Handy Person Scheme,"Works - Construction, Repair & Maintenance",390000
South Lakeland District Council,http://opendatacommunities.org/id/district-council/south-lakeland,31/01/2015,Business Support Community Services,Central Services,http://opendatacommunities.org/def/concept/finance/sercop/objective/102,SOUNDSMITH LIMITED,5366630,42032,46840,625,0,Holocaust Memorial Day 2015 -,Financial Services,200000
South Lakeland District Council,http://opendatacommunities.org/id/district-council/south-lakeland,31/01/2015,Financial Services,Central Services,http://opendatacommunities.org/def/concept/finance/sercop/objective/102,CIPFA,2376684,42032,46845,1300,0,Final Accounts year end training various,Education,170000
South Lakeland District Council,http://opendatacommunities.org/id/district-council/south-lakeland,31/01/2015,Offices,Central Services,http://opendatacommunities.org/def/concept/finance/sercop/objective/102,British Gas Trading Ltd (DD),,42005,46846,1086.45,,No description recorded,Utilities,370000
South Lakeland District Council,http://opendatacommunities.org/id/district-council/south-lakeland,31/01/2015,Offices,Central Services,http://opendatacommunities.org/def/concept/finance/sercop/objective/102,British Gas Trading Ltd (DD),,42005,46846,962.7,,No description recorded,Utilities,370000
South Lakeland District Council,http://opendatacommunities.org/id/district-council/south-lakeland,31/01/2015,SLDC Depots,Transport Planning Policy,http://opendatacommunities.org/def/concept/finance/sercop/objective/107,British Gas Trading Ltd (DD),,42005,46846,1222.72,,No description recorded,Utilities,370000
South Lakeland District Council,http://opendatacommunities.org/id/district-council/south-lakeland,31/01/2015,SLDC Depots,Transport Planning Policy,http://opendatacommunities.org/def/concept/finance/sercop/objective/107,British Gas Trading Ltd (DD),,42005,46846,284.49,,No description recorded,Utilities,370000
South Lakeland District Council,http://opendatacommunities.org/id/district-council/south-lakeland,31/01/2015,Town View Field Hostel,Housing Services,http://opendatacommunities.org/def/concept/finance/sercop/objective/108,British Gas Trading Ltd (DD),,42005,46846,1043,,No description recorded,Utilities,370000
South Lakeland District Council,http://opendatacommunities.org/id/district-council/south-lakeland,31/01/2015,Markets,External Trading Accounts,,British Gas Trading Ltd (DD),,42005,46846,2507.04,,No description recorded,Utilities,370000
South Lakeland District Council,http://opendatacommunities.org/id/district-council/south-lakeland,31/01/2015,Public Halls,Cultural Environmental Regulatory & Planning Services,http://opendatacommunities.org/def/concept/finance/sercop/objective/104,British Gas Trading Ltd (DD),,42005,46846,2343.22,,No description recorded,Utilities,370000
South Lakeland District Council,http://opendatacommunities.org/id/district-council/south-lakeland,31/01/2015,Public Halls,Cultural Environmental Regulatory & Planning Services,http://opendatacommunities.org/def/concept/finance/sercop/objective/104,British Gas Trading Ltd (DD),,42005,46846,2550.73,,No description recorded,Utilities,370000
